{"text_format":"1","workbook":"xlsx","n_sheets":4,"sheets":["申請書","様式第６号　（裏面）","添付","産業分類マッピング表"],"not_rendered":{"charts":0,"images":3,"macros":1,"external_links":0,"defined_names":3,"comments":0,"pivot_tables":0},"unopened":[],"bounds":{"document_bytes":16777216,"sheet_cells":100000,"rows_first":2000,"rows_last":500,"rows_between":2000,"halvings":0,"cell_chars":16384,"cell_head_chars":4096},"cells_cut":0,"cells_raw":0,"read":"whole","date_system":"1900"}

{"sheet":"申請書","index":0,"n_rows":171,"n_cols":131,"rows_kept":171,"cut":false,"hidden":false,"merged":[[59,30,59,36],[70,30,70,36],[71,57,71,63],[56,30,56,36],[65,57,65,63],[61,39,61,45],[64,39,64,45],[67,3,68,10],[67,12,67,18],[67,21,67,27],[67,30,67,36],[67,39,67,45],[67,48,67,54],[67,57,67,63],[68,12,68,18],[68,21,68,27],[68,30,68,36],[68,39,68,45],[68,48,68,54],[68,57,68,63],[70,12,70,18],[59,21,59,27],[69,3,69,10],[61,3,62,10],[87,1,87,10],[87,12,87,18],[87,21,87,27],[87,30,87,36],[87,39,87,45],[87,48,87,54],[87,57,87,63],[88,1,88,10],[88,12,88,18],[88,21,88,27],[88,30,88,36],[88,39,88,45],[88,48,88,54],[88,57,88,63],[85,1,85,10],[85,12,85,18],[85,21,85,27],[85,30,85,36],[85,39,85,45],[85,48,85,54],[85,57,85,63],[86,1,86,10],[86,12,86,18],[86,21,86,27],[86,30,86,36],[86,39,86,45],[86,48,86,54],[86,57,86,63],[84,1,84,10],[84,12,84,18],[84,21,84,27],[84,30,84,36],[84,39,84,45],[84,48,84,54],[84,57,84,63],[26,2,29,10],[26,20,29,28],[26,29,29,37],[26,38,29,46],[26,47,29,55],[26,56,29,64],[49,30,49,36],[51,21,51,27],[55,30,55,36],[52,30,52,36],[57,39,57,45],[57,48,57,54],[53,3,54,10],[53,12,53,18],[53,21,53,27],[53,30,53,36],[54,12,54,18],[51,48,51,54],[51,57,51,63],[52,39,52,45],[37,89,37,90],[49,39,49,45],[50,48,50,54],[37,79,37,80],[37,81,37,82],[83,1,83,64],[54,21,54,27],[54,30,54,36],[54,39,54,45],[54,48,54,54],[54,57,54,63],[81,20,81,46],[81,47,82,54],[81,55,82,55],[81,56,82,64],[82,20,82,46],[70,21,70,27],[80,57,80,63],[72,39,72,45],[72,48,72,54],[72,57,72,63],[41,21,41,27],[37,73,37,74],[37,75,37,76],[41,30,41,36],[41,57,41,63],[38,47,38,54],[48,57,48,63],[42,30,42,36],[37,91,37,92],[43,48,43,54],[44,30,44,36],[50,39,50,45],[51,12,51,18],[62,21,62,27],[69,12,69,18],[69,21,69,27],[56,21,56,27],[58,48,58,54],[58,57,58,63],[59,39,59,45],[59,48,59,54],[59,57,59,63],[58,39,58,45],[69,48,69,54],[65,48,65,54],[64,48,64,54],[65,39,65,45],[69,57,69,63],[53,39,53,45],[53,48,53,54],[53,57,53,63],[57,57,57,63],[55,57,55,63],[52,57,52,63],[59,12,59,18],[48,12,48,18],[55,12,55,18],[48,21,48,27],[49,21,49,27],[55,21,55,27],[52,12,52,18],[52,21,52,27],[49,12,49,18],[60,12,60,18],[60,21,60,27],[66,21,66,27],[66,30,66,36],[65,12,65,18],[65,21,65,27],[65,30,65,36],[64,21,64,27],[64,30,64,36],[61,30,61,36],[71,48,71,54],[61,12,61,18],[61,21,61,27],[62,12,62,18],[76,57,76,63],[76,39,76,45],[76,48,76,54],[61,57,61,63],[70,48,70,54],[70,57,70,63],[73,39,73,45],[73,48,73,54],[74,39,74,45],[74,48,74,54],[66,39,66,45],[66,48,66,54],[66,57,66,63],[69,39,69,45],[64,57,64,63],[73,57,73,63],[75,39,75,45],[63,57,63,63],[81,2,81,10],[81,11,82,18],[81,19,82,19],[82,2,82,10],[78,57,78,63],[80,39,80,45],[79,2,79,10],[79,12,79,18],[79,21,79,27],[79,30,79,36],[80,21,80,27],[80,30,80,36],[78,30,78,36],[77,57,77,63],[37,83,37,84],[37,85,37,86],[34,47,37,55],[34,56,37,64],[37,71,37,72],[38,38,38,45],[50,57,50,63],[56,57,56,63],[42,39,42,45],[55,39,55,45],[42,48,42,54],[42,57,42,63],[44,57,44,63],[47,57,47,63],[43,57,43,63],[55,48,55,54],[56,39,56,45],[56,48,56,54],[52,48,52,54],[49,57,49,63],[77,39,77,45],[75,57,75,63],[71,39,71,45],[60,30,60,36],[60,39,60,45],[60,48,60,54],[60,57,60,63],[61,48,61,54],[38,56,38,63],[70,3,70,10],[44,21,44,27],[44,48,44,54],[43,3,43,10],[43,12,43,18],[43,21,43,27],[43,30,43,36],[44,39,44,45],[56,12,56,18],[41,12,41,18],[59,3,60,10],[63,12,63,18],[63,21,63,27],[63,30,63,36],[63,3,64,10],[64,12,64,18],[44,12,44,18],[43,39,43,45],[21,59,21,62],[22,2,25,10],[22,20,25,28],[22,29,25,37],[22,38,25,46],[22,47,25,55],[22,56,25,64],[21,41,21,44],[21,47,21,48],[21,50,21,53],[21,2,21,10],[21,11,38,19],[21,20,21,21],[21,56,21,57],[21,23,21,26],[21,29,21,30],[21,32,21,35],[30,47,33,55],[30,56,33,64],[30,29,33,37],[30,2,33,10],[30,20,33,28],[34,2,37,10],[34,20,37,28],[10,30,10,32],[11,30,17,47],[10,34,10,37],[10,39,10,43],[10,45,10,47],[12,2,14,5],[18,2,18,5],[18,6,18,24],[20,2,20,10],[20,11,20,19],[20,20,20,64],[19,2,19,5],[19,6,19,20],[19,21,19,64],[4,52,4,64],[7,57,7,64],[9,28,9,29],[9,30,9,32],[9,38,9,39],[9,40,9,41],[9,44,9,54],[5,21,6,41],[7,52,7,54],[7,55,7,56],[9,34,9,36],[9,55,9,64],[0,15,0,21],[1,15,1,21],[5,1,6,3],[5,4,6,4],[5,5,6,9],[5,10,6,10],[5,11,6,11],[10,2,11,5],[10,6,11,24],[10,1,19,1],[38,2,38,10],[38,20,38,27],[18,38,18,41],[18,43,18,46],[30,38,33,46],[21,38,21,39],[18,30,18,32],[18,33,18,36],[13,61,18,64],[15,2,15,5],[15,6,15,24],[15,25,18,29],[16,2,17,5],[16,6,17,24],[16,48,16,60],[18,48,18,60],[10,25,14,29],[10,53,12,56],[10,57,12,60],[10,61,12,64],[17,48,17,60],[10,48,12,52],[13,48,15,60],[12,6,14,24],[58,3,58,10],[51,3,52,10],[47,30,47,36],[42,3,42,10],[42,12,42,18],[42,21,42,27],[51,30,51,36],[48,30,48,36],[50,21,50,27],[50,30,50,36],[55,3,56,10],[49,3,50,10],[57,12,57,18],[57,21,57,27],[50,12,50,18],[44,3,44,10],[57,3,57,10],[58,12,58,18],[58,21,58,27],[58,30,58,36],[57,30,57,36],[47,3,48,10],[47,12,47,18],[47,21,47,27],[37,93,37,94],[79,39,79,45],[79,48,79,54],[79,57,79,63],[62,30,62,36],[62,39,62,45],[37,69,37,70],[38,29,38,36],[69,30,69,36],[70,39,70,45],[34,29,37,37],[34,38,37,46],[77,48,77,54],[49,48,49,54],[78,39,78,45],[78,48,78,54],[74,57,74,63],[48,39,48,45],[51,39,51,45],[47,39,47,45],[47,48,47,54],[48,48,48,54],[37,77,37,78],[37,87,37,88],[65,3,66,10],[66,12,66,18],[77,12,77,18],[77,21,77,27],[77,30,77,36],[71,3,72,10],[71,12,71,18],[71,21,71,27],[71,30,71,36],[72,12,72,18],[72,21,72,27],[72,30,72,36],[75,12,75,18],[75,21,75,27],[75,30,75,36],[74,12,74,18],[74,21,74,27],[74,30,74,36],[76,12,76,18],[76,21,76,27],[76,30,76,36],[77,3,78,10],[78,12,78,18],[78,21,78,27],[94,15,95,46],[97,1,157,1],[97,2,97,10],[97,11,97,64],[98,2,98,10],[98,11,98,12],[99,2,102,10],[73,3,74,10],[73,12,73,18],[73,21,73,27],[73,30,73,36],[80,12,80,18],[80,48,80,54],[80,2,80,10],[75,48,75,54],[75,3,76,10],[20,1,82,1],[41,39,41,45],[41,48,41,54],[62,48,62,54],[41,3,41,10],[62,57,62,63],[63,39,63,45],[63,48,63,54],[103,2,106,10],[107,2,110,10],[103,11,106,20],[103,21,106,31],[103,32,106,42],[103,43,106,54],[103,55,106,64],[107,11,110,20],[107,21,110,31],[107,32,110,42],[107,43,110,54],[107,55,110,64],[118,3,118,10],[119,3,119,10],[111,2,114,10],[115,2,115,10],[111,11,114,20],[111,21,114,31],[111,32,114,42],[111,43,114,54],[111,55,114,64],[115,11,115,19],[115,21,115,29],[115,30,115,31],[115,32,115,41],[115,53,115,54],[115,55,115,63],[118,12,118,19],[118,22,118,29],[118,30,118,31],[118,33,118,41],[118,44,118,52],[118,53,118,54],[118,56,118,63],[119,12,119,19],[119,22,119,29],[124,3,125,10],[125,12,125,19],[125,22,125,29],[125,33,125,41],[125,44,125,52],[125,56,125,63],[120,3,120,10],[121,3,121,10],[120,12,120,19],[120,22,120,29],[120,30,120,31],[120,44,120,52],[120,53,120,54],[120,56,120,63],[121,12,121,19],[121,22,121,29],[124,12,124,19],[124,22,124,29],[124,30,124,31],[124,33,124,41],[124,44,124,52],[124,53,124,54],[124,56,124,63],[128,3,129,10],[126,3,127,10],[126,12,126,19],[126,22,126,29],[126,30,126,31],[126,33,126,41],[126,44,126,52],[126,53,126,54],[126,56,126,63],[127,12,127,19],[127,22,127,29],[127,33,127,41],[127,44,127,52],[129,12,129,19],[129,22,129,29],[129,33,129,41],[129,44,129,52],[129,56,129,63],[127,56,127,63],[128,12,128,19],[128,22,128,29],[128,30,128,31],[128,33,128,41],[128,44,128,52],[132,3,133,10],[130,3,131,10],[130,12,130,19],[130,22,130,29],[130,30,130,31],[130,33,130,41],[130,44,130,52],[130,53,130,54],[130,56,130,63],[131,12,131,19],[131,22,131,29],[131,33,131,41],[131,44,131,52],[131,56,131,63],[132,12,132,19],[132,22,132,29],[132,30,132,31],[132,33,132,41],[132,44,132,52],[132,53,132,54],[132,56,132,63],[133,12,133,19],[133,22,133,29],[133,33,133,41],[136,3,137,10],[137,12,137,19],[137,22,137,29],[137,33,137,41],[137,44,137,52],[137,56,137,63],[134,3,134,10],[135,3,135,10],[134,12,134,19],[134,22,134,29],[134,30,134,31],[134,44,134,52],[134,53,134,54],[134,56,134,63],[135,12,135,19],[135,22,135,29],[137,53,137,54],[140,3,141,10],[138,3,139,10],[138,12,138,19],[138,22,138,29],[138,30,138,31],[138,33,138,41],[138,44,138,52],[138,53,138,54],[138,56,138,63],[139,12,139,19],[139,22,139,29],[139,33,139,41],[139,44,139,52],[139,56,139,63],[140,12,140,19],[140,22,140,29],[140,30,140,31],[140,33,140,41],[140,44,140,52],[140,53,140,54],[140,56,140,63],[141,12,141,19],[141,22,141,29],[141,33,141,41],[144,3,145,10],[142,3,143,10],[142,12,142,19],[142,22,142,29],[142,30,142,31],[142,33,142,41],[142,44,142,52],[142,53,142,54],[142,56,142,63],[143,12,143,19],[143,22,143,29],[143,33,143,41],[143,44,143,52],[145,12,145,19],[145,22,145,29],[145,33,145,41],[145,44,145,52],[145,56,145,63],[148,3,149,10],[149,12,149,19],[149,22,149,29],[149,33,149,41],[149,44,149,52],[149,56,149,63],[146,3,146,10],[147,3,147,10],[146,12,146,19],[146,22,146,29],[146,30,146,31],[146,44,146,52],[146,53,146,54],[146,56,146,63],[147,12,147,19],[147,22,147,29],[147,30,147,31],[147,44,147,52],[147,53,147,54],[147,56,147,63],[148,12,148,19],[148,22,148,29],[148,30,148,31],[148,33,148,41],[152,3,153,10],[150,3,151,10],[150,12,150,19],[150,22,150,29],[150,30,150,31],[150,33,150,41],[150,44,150,52],[150,53,150,54],[150,56,150,63],[151,12,151,19],[151,22,151,29],[151,33,151,41],[151,44,151,52],[153,12,153,19],[153,22,153,29],[153,33,153,41],[153,44,153,52],[153,56,153,63],[153,30,153,31],[153,53,153,54],[154,3,155,10],[154,12,154,19],[154,22,154,29],[154,30,154,31],[154,33,154,41],[154,44,154,52],[154,53,154,54],[154,56,154,63],[155,12,155,19],[155,22,155,29],[155,30,155,31],[155,33,155,41],[155,44,155,52],[155,53,155,54],[155,56,155,63],[156,2,156,10],[157,2,157,10],[157,12,157,19],[157,22,157,29],[157,30,157,31],[157,33,157,41],[157,44,157,52],[157,53,157,54],[157,56,157,63],[156,12,156,19],[156,22,156,29],[156,30,156,31],[156,33,156,41],[156,44,156,52],[156,53,156,54],[156,56,156,63],[158,1,158,64],[159,1,159,10],[160,1,160,10],[159,12,159,19],[159,22,159,29],[159,30,159,31],[159,33,159,41],[159,44,159,52],[159,53,159,54],[159,56,159,63],[160,12,160,19],[160,22,160,29],[160,30,160,31],[160,33,160,41],[160,44,160,52],[160,53,160,54],[160,56,160,63],[161,1,161,10],[162,1,162,10],[162,12,162,19],[162,22,162,29],[162,30,162,31],[162,33,162,41],[162,44,162,52],[162,53,162,54],[162,56,162,63],[161,12,161,19],[161,22,161,29],[161,30,161,31],[161,33,161,41],[161,44,161,52],[161,53,161,54],[161,56,161,63],[163,1,163,10],[164,2,164,10],[164,11,164,18],[164,20,167,64],[166,2,167,10],[166,11,167,18],[166,19,167,19],[163,12,163,19],[163,22,163,29],[163,30,163,31],[163,33,163,41],[163,44,163,52],[163,53,163,54],[163,56,163,63],[91,1,91,64],[89,1,90,4],[89,5,89,14],[89,15,89,29],[89,30,90,33],[89,34,89,48],[89,49,89,64],[90,5,90,14],[90,15,90,29],[90,34,90,48],[90,49,90,64],[98,47,98,50],[98,52,98,54],[98,55,98,56],[98,58,98,61],[98,63,98,64],[99,11,102,20],[99,21,102,31],[99,32,102,42],[99,43,102,54],[99,55,102,64],[98,19,98,20],[98,21,98,23],[98,25,98,28],[98,30,98,31],[98,36,98,38],[98,40,98,42],[98,43,98,45],[98,14,98,17],[98,32,98,34],[119,30,119,31],[119,33,119,41],[119,44,119,52],[119,53,119,54],[119,56,119,63],[121,30,121,31],[121,33,121,41],[121,44,121,52],[121,53,121,54],[121,56,121,63],[120,33,120,41],[128,56,128,63],[133,56,133,63],[135,30,135,31],[135,44,135,52],[135,53,135,54],[135,56,135,63],[136,12,136,19],[136,22,136,29],[136,30,136,31],[136,33,136,41],[136,44,136,52],[136,53,136,54],[136,56,136,63],[133,30,133,31],[131,30,131,31],[129,30,129,31],[133,44,133,52],[141,56,141,63],[143,56,143,63],[144,12,144,19],[144,22,144,29],[144,30,144,31],[144,33,144,41],[144,44,144,52],[144,53,144,54],[144,56,144,63],[141,44,141,52],[148,44,148,52],[148,53,148,54],[148,56,148,63],[151,56,151,63],[152,12,152,19],[152,22,152,29],[152,30,152,31],[152,33,152,41],[152,44,152,52],[152,53,152,54],[152,56,152,63],[151,30,151,31],[149,30,149,31],[149,53,149,54],[151,53,151,54],[127,30,127,31],[125,30,125,31],[145,30,145,31],[143,30,143,31],[141,30,141,31],[139,30,139,31],[137,30,137,31],[146,33,146,41],[147,33,147,41],[134,33,134,41],[135,33,135,41],[115,43,115,52],[139,53,139,54],[141,53,141,54],[143,53,143,54],[145,53,145,54],[125,53,125,54],[127,53,127,54],[129,53,129,54],[131,53,131,54],[133,53,133,54],[128,53,128,54]]}
[null,null,null,null,null,null,null,null,null,null,null,null,null,null,null,null,null,null,null,null,null,null,null,null,null,null,null,null,null,null,null,null,null,null,null,null,null,null,null,null,null,null,null,null,null,null,null,null,null,null,null,null,null,null,null,null,null,null,null,null,null,null,null,null,null,null,"様式ID","A-250170-001_1",null,null,null,null,null,null,null,null,null,null,null,null,null,null,null,null,null,null,null,null,null,null,null,null,null,null,null,null,null,null,null,null,null,null,null,null,null,null,null,null,null,null,null,"適用事業所番号","年度","安定所名","事業主","郵便番号","住所","電話番号","産業中分類","事業所数","合計","事業所1","事業所2","事業所3","事業所4","事業所5","推進者","記入者","安定所記載欄"]
[null,null,null,null,null,null,null,null,null,null,null,null,null,null,null,2,null,null,null,null,null,null,null,null,null,null,null,null,null,null,null,null,null,null,null,null,null,null,null,null,null,null,null,null,null,null,null,null,null,null,null,null,null,null,null,null,null,null,null,null,null,null,null,null,null,null,"年度","06年度01版",null,null,null,null,null,null,null,null,null,null,null,null,null,null,null,null,null,null,null,null,null,null,null,null,null,null,null,null,null,null,null,null,null,null,"安定所記載欄",null,null,null,null,null,null,null,null,"A","A","A","A","A","A","A","A","A","A","A","A","A","A","A","A","A","A"]
[null,null,null,null,null,null,null,null,null,null,null,null,null,null,null,null,null,null,null,null,null,null,null,null,null,null,null,null,null,null,null,null,null,null,null,null,null,null,null,null,null,null,null,null,null,null,null,null,null,null,null,null,null,null,null,null,null,null,null,null,null,null,null,null,null,null,"検査実施フラグ","OF",null,null,null,null,null,null,null,null,null,null,null,null,null,null,null,null,null,null,null,null,null,null,null,null,null,null,null,null,null,null,null,null,null,null,null,null,null,null,null,null,null,null,null,"A","A","A","A","A","A","A","A","A","A","A","A","A","A","A","A","A","A"]
[null,null,null,null,null,null,null,null,null,null,null,null,null,null,null,null,null,null,null,null,null,null,null,null,null,null,null,null,null,null,null,null,null,null,null,null,null,null,null,null,null,null,null,null,null,null,null,null,null,null,null,null,null,null,null,null,null,null,null,null,null,null,null,null,null,"37_01_01_001",null,null,null,null,null,null,null,null,null,null,null,null,null,null,null,null,null,null,null,null,null,null,null,null,null,null,null,null,null,null,null,null,null,null,null,null,null,null,null,null,null,null,null,null,null,"A","A","A","A","A","A","A","A","A","A","A","A","A","A","A","A","A","A"]
[null,"　様式第6号",null,null,null,null,null,null,null,null,null,null,null,null,"（第４条関係）",null,null,null,null,null,null,null,null,null,null,null,null,null,null,null,null,null,null,null,null,null,null,null,null,null,null,null,null,null,null,null,null,null,null,null,null,null,"（日本産業規格Ａ列４）",null,null,null,null,null,null,null,null,null,null,null,null,1,null,null,null,null,null,null,null,null,null,null,null,null,null,null,null,null,null,null,null,null,null,null,null,null,null,null,null,null,null,null,null,null,null,null,1,null,null,null,null,null,null,null,null,null,null,"A","A","A","A","A","A","A","A","A","A","A","A","A","A","A","A","A","A"]
[null,null,null,null,"―",null,null,null,null,null,"―",null,null,null,null,null,null,null,null,null,null,"障害者雇用状況報告書",null,null,null,null,null,null,null,null,null,null,null,null,null,null,null,null,null,null,null,null,null,null,null,null,null,null,null,null,null,null,null,null,null,null,null,null,null,null,null,null,null,null,null,null,null,null,null,null,null,null,null,null,null,null,null,null,null,null,null,null,null,null,null,null,null,null,null,null,null,null,null,null,null,null,null,null,null,null,null,null,null,null,null,null,null,null,null,null,null,"A","A","A","A","A","A","A","A","A","A","A","A","A","A","A","A","A","A"]
[null,null,null,null,null,null,null,null,null,null,null,null,null,null,null,null,null,null,null," ",null,null,null,null,null,null,null,null,null,null,null,null,null,null,null,null,null,null,null,null,null,null,null,null,null,null,null,null,null,null,null,null,null,null,null,null,null,null,null,null,null,null,null,null,null,null,null,null,null,null,null,null,null,null,null,null,null,null,null,null,null,null,null,null,null,null,null,null,null,null,null,null,null,null,null,null,null,null,null,null,null,null,null,null,null,null,null,null,null,null,null,"A","A","A","A","A","A","A","A","A","A","A","A","A","A","A","A","A","A"]
[null,null,null,null,null,null,null,null,null,null,null,null,null,null,null,null,null,null,null,null,null,null,null,null,null,null,null,null,null,null,null,null,null,null,null,null,null,null,null,null,null,null,null,null,null,null,null,null,null,null,null,null,"令和",null,null,7,null,"年 6月 1日現在  ",null,null,null,null,null,null,null,null,null,null,null,null,null,null,null,null,null,null,null,null,null,null,null,null,null,null,null,null,null,null,null,null,null,null,null,null,null,null,null,null,null,null,null,null,null,null,null,null,null,null,null,null,null,"A","A","A","A","A","A","A","A","A","A","A","A","A","A","A","A","A","A"]
[null,"　 障害者の雇用の促進等に関する法律施行規則第８条の規定により、",null,null,null,null,null,null,null,null,null,null,null,null,null,null,null,null,null,null,null,null,null,null,null,null,null,null,null,null,null,null,null,null,null,null,null,null,null,null,null,null,null,null,null,null,null,null,null,null,null,null,null,null,null,null,null,null,null,null,null,null,null,null,null,null,null,null,null,null,null,null,null,null,null,null,null,null,null,null,null,null,null,null,null,null,null,null,null,null,null,null,null,null,null,null,null,null,null,null,null,null,null,null,null,null,null,null,null,null,null,"A","A","A","A","A","A","A","A","A","A","A","A","A","A","A","A","A","A"]
[null,"　 下記のとおり報告します。",null,null,null,null,null,null,null,null,null,null,null,null,null,null,null,null,null,null,null,null,null,null,null,null,null,null,"令和",null,null,null,null,"年",null,null,null,"月",null,null,"日",null,null,null,null,null,null,null,null,null,null,null,null,null,null,"公共職業安定所長　殿",null,null,null,null,null,null,null,null,null,null,null,null,null,null,null,null,null,null,null,null,null,null,null,null,null,null,null,null,null,null,null,null,null,null,null,null,null,null,null,null,null,null,null,null,null,null,null,null,null,null,null,null,null,null,null,{"$f":"B6&\"\"","v":""},{"$f":"BD8&\"\"","v":"7"},{"$f":"AS10&\"\"","v":""},{"$f":"G11&\"\"","v":""},{"$f":"AI11&\"\"","v":""},{"$f":"AE12&\"\"","v":""},{"$f":"AH19&\"\"","v":""},{"$f":"BF11&\"\"","v":""},{"$f":"BJ14&\"\"","v":""},null,null,null,null,null,null,{"$f":"#REF!&\"\"","v":{"$error":"#REF!"}},{"$f":"#REF!&\"\"","v":{"$error":"#REF!"}},{"$f":"CY3&\"\"","v":""}]
[null,"Ａ　事業主","(ふりがな)",null,null,null,null,null,null,null,null,null,null,null,null,null,null,null,null,null,null,null,null,null,null,"住　所",null,null,null,null,"〒",null,null,null,null,null,null,null,"―",null,null,null,null,null,null,null,null,null,"(1)事業\n   の種類",null,null,null,null,"産業\n分類",null,null,null,null,null,null,null,"(2)\n事業所\nの数",null,null,null,null,null,null,null,null,null,null,null,null,null,null,null,null,null,null,null,null,null,null,null,null,null,null,null,null,null,null,null,null,null,null,null,null,null,null,null,null,null,null,null,null,null,null,null,null,null,{"$f":"F6&\"\"","v":""},{"$f":"AE10&\"\"","v":""},null,{"$f":"G13&\"\"","v":""},{"$f":"AN11&\"\"","v":""},null,{"$f":"AM19&\"\"","v":""},{"$f":"AW14&\"\"","v":""},null,null,null,null,null,null,null,{"$f":"#REF!&\"\"","v":{"$error":"#REF!"}},{"$f":"#REF!&\"\"","v":{"$error":"#REF!"}}]
[null,null,null,null,null,null,null,null,null,null,null,null,null,null,null,null,null,null,null,null,null,null,null,null,null,null,null,null,null,null,null,null,null,null,null,null,null,null,null,null,null,null,null,null,null,null,null,null,null,null,null,null,null,null,null,null,null,null,null,null,null,null,null,null,null,null,null,null,null,null,null,null,null,null,null,null,null,null,null,null,null,null,null,null,null,null,null,null,null,null,null,null,null,null,null,null,null,null,null,null,null,null,null,null,null,null,null,null,null,null,null,{"$f":"L6&\"\"","v":""},{"$f":"AI10&\"\"","v":""},null,{"$f":"G16&\"\"","v":""},null,null,{"$f":"AR19&\"\"","v":""},{"$f":"AW18&\"\"","v":""}]
[null,null,"法人名称",null,null,null,null,null,null,null,null,null,null,null,null,null,null,null,null,null,null,null,null,null,null,null,null,null,null,null,null,null,null,null,null,null,null,null,null,null,null,null,null,null,null,null,null,null,null,null,null,null,null,null,null,null,null,null,null,null,null,null,null,null,null,null,null,null,null,null,null,null,null,null,null,null,null,null,null,null,null,null,null,null,null,null,null,null,null,null,null,null,null,null,null,null,null,null,null,null,null,null,null,null,null,null,null,null,null,null,null,null,{"$f":"AM10&\"\"","v":""},null,{"$f":"G17&\"\"","v":""}]
[null,null,null,null,null,null,null,null,null,null,null,null,null,null,null,null,null,null,null,null,null,null,null,null,null,null,null,null,null,null,null,null,null,null,null,null,null,null,null,null,null,null,null,null,null,null,null,null,{"$f":"IFERROR(VLOOKUP(BF11,産業分類マッピング表!C3:D101,2,FALSE),\"\")","v":""}]
[]
[null,null,"(ふりがな)",null,null,null,null,null,null,null,null,null,null,null,null,null,null,null,null,null,null,null,null,null,null," 法人にあって\n は主たる事業\n 所の所在地"]
[null,null,"氏名又は代表者\n氏名"]
[]
[null,null,null,null,null,null,null,null,null,null,null,null,null,null,null,null,null,null,null,null,null,null,null,null,null,null,null,null,null,null,"(TEL",null,null,null,null,null,null,"―",null,null,null,null,"―",null,null,null,null,")"]
[null,null,"(3)法人番号"]
[null,"　Ｂ　雇用の状況","区     分",null,null,null,null,null,null,null,null,"合　計",null,null,null,null,null,null,null,null,"Ｃ　事業所別の内訳"]
[null,null,"(4)適用事業所番号",null,null,null,null,null,null,null,null,null,null,null,null,null,null,null,null,null,null,null,"―",null,null,null,null,"―",null,null,null,"―",null,null,null,null,"―",null,null,null,"―",null,null,null,null,"―",null,null,null,"―",null,null,null,null,"―",null,null,null,"―",null,null,null,null,"―",null,null,null,null,null,null,null,null,null,null,null,null,null,null,null,null,null,null,null,null,null,null,null,null,null,null,null,null,null,null,null,null,null,null,null,null,null,null,null,null,null,null,null,null,null,null,null,null,null,null,null,null,null,null,null,null,null,{"$f":"U22&\"\"","v":""},{"$f":"AD22&\"\"","v":""},{"$f":"AM22&\"\"","v":""},{"$f":"AV22&\"\"","v":""},{"$f":"BE22&\"\"","v":""}]
[null,null,"(5)事業所の名称",null,null,null,null,null,null,null,null,null,null,null,null,null,null,null,null,null,null,null,null,null,null,null,null,null,null,null,null,null,null,null,null,null,null,null,null,null,null,null,null,null,null,null,null,null,null,null,null,null,null,null,null,null,null,null,null,null,null,null,null,null,null,null,null,null,null,null,null,null,null,null,null,null,null,null,null,null,null,null,null,null,null,null,null,null,null,null,null,null,null,null,null,null,null,null,null,null,null,null,null,null,null,null,null,null,null,null,null,null,null,null,null,null,null,null,null,null,null,{"$f":"X22&\"\"","v":""},{"$f":"AG22&\"\"","v":""},{"$f":"AP22&\"\"","v":""},{"$f":"AY22&\"\"","v":""},{"$f":"BH22&\"\"","v":""}]
[null,null,null,null,null,null,null,null,null,null,null,null,null,null,null,null,null,null,null,null,null,null,null,null,null,null,null,null,null,null,null,null,null,null,null,null,null,null,null,null,null,null,null,null,null,null,null,null,null,null,null,null,null,null,null,null,null,null,null,null,null,null,null,null,null,null,null,null,null,null,null,null,null,null,null,null,null,null,null,null,null,null,null,null,null,null,null,null,null,null,null,null,null,null,null,null,null,null,null,null,null,null,null,null,null,null,null,null,null,null,null,null,null,null,null,null,null,null,null,null,null,{"$f":"AC22&\"\"","v":""},{"$f":"AL22&\"\"","v":""},{"$f":"AU22&\"\"","v":""},{"$f":"BD22&\"\"","v":""},{"$f":"BM22&\"\"","v":""}]
[null,null,null,null,null,null,null,null,null,null,null,null,null,null,null,null,null,null,null,null,null,null,null,null,null,null,null,null,null,null,null,null,null,null,null,null,null,null,null,null,null,null,null,null,null,null,null,null,null,null,null,null,null,null,null,null,null,null,null,null,null,null,null,null,null,null,null,null,null,null,null,null,null,null,null,null,null,null,null,null,null,null,null,null,null,null,null,null,null,null,null,null,null,null,null,null,null,null,null,null,null,null,null,null,null,null,null,null,null,null,null,null,null,null,null,null,null,null,null,null,null,{"$f":"U23&\"\"","v":""},{"$f":"AD23&\"\"","v":""},{"$f":"AM23&\"\"","v":""},{"$f":"AV23&\"\"","v":""},{"$f":"BE23&\"\"","v":""}]
[]
[null,null,"(6)事業所の区分\n　１　特例子会社に含まれる事業所\n　２　指定就労継続支援Ａ型事業所\n　３　上記１及び２以外"]
[]
[]
[]
[null,null,"(7)事業所の所在地",null,null,null,null,null,null,null,null,null,null,null,null,null,null,null,null,null,null,null,null,null,null,null,null,null,null,null,null,null,null,null,null,null,null,null,null,null,null,null,null,null,null,null,null,null,null,null,null,null,null,null,null,null,null,null,null,null,null,null,null,null,null,null,null,null,null,null,null,null,null,null,null,null,null,null,null,null,null,null,null,null,null,null,null,null,null,null,null,null,null,null,null,null,null,null,null,null,null,null,null,null,null,null,null,null,null,null,null,null,null,null,null,null,null,null,null,null,null,{"$f":"U31&\"\"","v":""},{"$f":"AD31&\"\"","v":""},{"$f":"AM31&\"\"","v":""},{"$f":"AV31&\"\"","v":""},{"$f":"BE31&\"\"","v":""}]
[]
[]
[]
[null,null,"(8)事業の内容",null,null,null,null,null,null,null,null,null,null,null,null,null,null,null,null,null,null,null,null,null,null,null,null,null,null,null,null,null,null,null,null,null,null,null,null,null,null,null,null,null,null,null,null,null,null,null,null,null,null,null,null,null,null,null,null,null,null,null,null,null,null,null,null,null,null,null,null,null,null,null,null,null,null,null,null,null,null,null,null,null,null,null,null,null,null,null,null,null,null,null,null,null,null,null,null,null,null,null,null,null,null,null,null,null,null,null,null,null,null,null,null,null,null,null,null,null,null,{"$f":"U35&\"\"","v":""},{"$f":"AD35&\"\"","v":""},{"$f":"AM35&\"\"","v":""},{"$f":"AV35&\"\"","v":""},{"$f":"BE35&\"\"","v":""}]
[]
[]
[null,null,null,null,null,null,null,null,null,null,null,null,null,null,null,null,null,null,null,null,null,null,null,null,null,null,null,null,null,null,null,null,null,null,null,null,null,null,null,null,null,null,null,null,null,null,null,null,null,null,null,null,null,null,null,null,null,null,null,null,null,null,null,null,null,null,"(ｲ)常用雇用労働者の数","(ﾛ)短時間労働者の数","(ﾆ)法定雇用障害者の算定の基礎と なる労働者の数","(ﾎ)重度身体障害者の数",null,"(ﾍ)重度身体障害者以外の身体障害者の数",null,"(ﾄ)重度身体障害者である短時間労働者の数",null,"(ﾁ)重度身体障害者以外の身体障害者である短時間労働者の数",null,"(ﾘ)重度身体障害者である特定短時間労働者の数",null,"(ﾙ)重度知的障害者の数",null,"(ｦ)重度知的障害者以外の知的障害者の数",null,"(ﾜ)重度知的障害者である短時間労働者の数",null,"(ｶ)重度知的障害者以外の知的障害者である短時間労働者の数",null,"(ﾖ)重度知的障害者である特定短時間労働者の数",null,"(ﾚ)精神障害者の数",null,"(ｿ)精神障害者である短時間労働者の数",null,"(ﾂ)精神障害者である特定短時間労働者の数",null,"視覚障害者（第１号に該当する者）","聴覚又は平衡機能障害者\n（第２号に該当する者）","音声・言語・そしゃく機能障害者\n（第３号に該当する者）","肢体不自由者（第４号に該当する者）","内部障害（第５号に該当する者）"]
[null,null,"(9)除外率",null,null,null,null,null,null,null,null,null,null,null,null,null,null,null,null,null,null,null,null,null,null,null,null,null,"％",null,null,null,null,null,null,null,null,"％",null,null,null,null,null,null,null,null,"％",null,null,null,null,null,null,null,null,"％",null,null,null,null,null,null,null,null,"％",null,{"$f":"SUM(BO42:BO79013)","v":0},0,0,0,0,0,0,0,0,0,0,0,0,0,0,0,0,0,0,0,0,0,0,0,0,0,0,0,0,0,0,0,0,0,null,null,null,null,null,null,null,null,null,null,null,null,null,null,null,null,null,null,null,null,{"$f":"U39&\"\"","v":""},{"$f":"AD39&\"\"","v":""},{"$f":"AM39&\"\"","v":""},{"$f":"AV39&\"\"","v":""},{"$f":"BE39&\"\"","v":""}]
[null,null,"(10)常用雇用労働者の数"]
[]
[null,null,null,"(ｲ)常用雇用労働者の数",null,null,null,null,null,null,null,null,{"$f":"V42+AE42+AN42+AW42+BF42+BO39","v":0},null,null,null,null,null,null,"人",null,null,null,null,null,null,null,null,"人",null,null,null,null,null,null,null,null,"人",null,null,null,null,null,null,null,null,"人",null,null,null,null,null,null,null,null,"人",null,null,null,null,null,null,null,null,"人",null,null,null,null,null,null,null,null,null,null,null,null,null,null,null,null,null,null,null,null,null,null,null,null,null,null,null,null,null,null,null,null,null,null,null,null,null,null,null,null,null,null,null,null,null,null,null,null,null,null,null,null,null,null,null,{"$f":"M42&\"\"","v":"0"},{"$f":"V42&\"\"","v":""},{"$f":"AE42&\"\"","v":""},{"$f":"AN42&\"\"","v":""},{"$f":"AW42&\"\"","v":""},{"$f":"BF42&\"\"","v":""}]
[null,null,null,"(ﾛ)短時間労働者の数",null,null,null,null,null,null,null,null,{"$f":"V43+AE43+AN43+AW43+BF43+BP39","v":0},null,null,null,null,null,null,"人",null,null,null,null,null,null,null,null,"人",null,null,null,null,null,null,null,null,"人",null,null,null,null,null,null,null,null,"人",null,null,null,null,null,null,null,null,"人",null,null,null,null,null,null,null,null,"人",null,null,null,null,null,null,null,null,null,null,null,null,null,null,null,null,null,null,null,null,null,null,null,null,null,null,null,null,null,null,null,null,null,null,null,null,null,null,null,null,null,null,null,null,null,null,null,null,null,null,null,null,null,null,null,{"$f":"M43&\"\"","v":"0"},{"$f":"V43&\"\"","v":""},{"$f":"AE43&\"\"","v":""},{"$f":"AN43&\"\"","v":""},{"$f":"AW43&\"\"","v":""},{"$f":"BF43&\"\"","v":""}]
[null,null,null,"(ﾊ)常用雇用労働者の数［ｲ+(ﾛ×0.5)］",null,null,null,null,null,null,null,null,{"$f":"M42+M43*0.5","v":0},null,null,null,null,null,null,"人",null,{"$f":"V42+V43*0.5","v":0},null,null,null,null,null,null,"人",null,{"$f":"AE42+AE43*0.5","v":0},null,null,null,null,null,null,"人",null,{"$f":"AN42+AN43*0.5","v":0},null,null,null,null,null,null,"人",null,{"$f":"AW42+AW43*0.5","v":0},null,null,null,null,null,null,"人",null,{"$f":"BF42+BF43*0.5","v":0},null,null,null,null,null,null,"人",null,null,null,null,null,null,null,null,null,null,null,null,null,null,null,null,null,null,null,null,null,null,null,null,null,null,null,null,null,null,null,null,null,null,null,null,null,null,null,null,null,null,null,null,null,null,null,null,null,null,null,null,null,null,null,null,null,null,null,null,{"$f":"M44&\"\"","v":"0"},{"$f":"V44&\"\"","v":"0"},{"$f":"AE44&\"\"","v":"0"},{"$f":"AN44&\"\"","v":"0"},{"$f":"AW44&\"\"","v":"0"},{"$f":"BF44&\"\"","v":"0"}]
[null,null,null,"(ﾆ)法定雇用障害者の算定の基礎と\n   なる労働者の数",null,null,null,null,null,null,null,null,{"$f":"V45+AE45+AN45+AW45+BF45+BQ39","v":0},null,null,null,null,null,null,"人",null,null,null,null,null,null,null,null,"人",null,null,null,null,null,null,null,null,"人",null,null,null,null,null,null,null,null,"人",null,null,null,null,null,null,null,null,"人",null,null,null,null,null,null,null,null,"人",null,null,null,null,null,null,null,null,null,null,null,null,null,null,null,null,null,null,null,null,null,null,null,null,null,null,null,null,null,null,null,null,null,null,null,null,null,null,null,null,null,null,null,null,null,null,null,null,null,null,null,null,null,null,null,{"$f":"M45&\"\"","v":"0"},{"$f":"V45&\"\"","v":""},{"$f":"AE45&\"\"","v":""},{"$f":"AN45&\"\"","v":""},{"$f":"AW45&\"\"","v":""},{"$f":"BF45&\"\"","v":""}]
[null,null,"(11)常用雇用身体障害者、知的障害者及び精神障害者の数"]
[]
[null,null,null,"(ﾎ)重度身体障害者の数",null,null,null,null,null,null,null,null,{"$f":"V48+AE48+AN48+AW48+BF48+BR39","v":0},null,null,null,null,null,null,"人",null,null,null,null,null,null,null,null,"人",null,null,null,null,null,null,null,null,"人",null,null,null,null,null,null,null,null,"人",null,null,null,null,null,null,null,null,"人",null,null,null,null,null,null,null,null,"人",null,null,null,null,null,null,null,null,null,null,null,null,null,null,null,null,null,null,null,null,null,null,null,null,null,null,null,null,null,null,null,null,null,null,null,null,null,null,null,null,null,null,null,null,null,null,null,null,null,null,null,null,null,null,null,{"$f":"M48&\"\"","v":"0"},{"$f":"V48&\"\"","v":""},{"$f":"AE48&\"\"","v":""},{"$f":"AN48&\"\"","v":""},{"$f":"AW48&\"\"","v":""},{"$f":"BF48&\"\"","v":""}]
[null,null,null,null,null,null,null,null,null,null,null,"（",{"$f":"V49+AE49+AN49+AW49+BF49+BS39","v":0},null,null,null,null,null,null,"）","（",null,null,null,null,null,null,null,"）","（",null,null,null,null,null,null,null,"）","（",null,null,null,null,null,null,null,"）","（",null,null,null,null,null,null,null,"）","（",null,null,null,null,null,null,null,"）",null,null,null,null,null,null,null,null,null,null,null,null,null,null,null,null,null,null,null,null,null,null,null,null,null,null,null,null,null,null,null,null,null,null,null,null,null,null,null,null,null,null,null,null,null,null,null,null,null,null,null,null,null,null,null,{"$f":"M49&\"\"","v":"0"},{"$f":"V49&\"\"","v":""},{"$f":"AE49&\"\"","v":""},{"$f":"AN49&\"\"","v":""},{"$f":"AW49&\"\"","v":""},{"$f":"BF49&\"\"","v":""}]
[null,null,null,"(ﾍ)重度身体障害者以外の\n   身体障害者の数",null,null,null,null,null,null,null,null,{"$f":"V50+AE50+AN50+AW50+BF50+BT39","v":0},null,null,null,null,null,null,"人",null,null,null,null,null,null,null,null,"人",null,null,null,null,null,null,null,null,"人",null,null,null,null,null,null,null,null,"人",null,null,null,null,null,null,null,null,"人",null,null,null,null,null,null,null,null,"人",null,null,null,null,null,null,null,null,null,null,null,null,null,null,null,null,null,null,null,null,null,null,null,null,null,null,null,null,null,null,null,null,null,null,null,null,null,null,null,null,null,null,null,null,null,null,null,null,null,null,null,null,null,null,null,"0","","","","",""]
[null,null,null,null,null,null,null,null,null,null,null,"（",{"$f":"V51+AE51+AN51+AW51+BF51+BU39","v":0},null,null,null,null,null,null,"）","（",null,null,null,null,null,null,null,"）","（",null,null,null,null,null,null,null,"）","（",null,null,null,null,null,null,null,"）","（",null,null,null,null,null,null,null,"）","（",null,null,null,null,null,null,null,"）",null,null,null,null,null,null,null,null,null,null,null,null,null,null,null,null,null,null,null,null,null,null,null,null,null,null,null,null,null,null,null,null,null,null,null,null,null,null,null,null,null,null,null,null,null,null,null,null,null,null,null,null,null,null,null,"0","","","","",""]
[null,null,null,"(ﾄ)重度身体障害者である\n　 短時間労働者の数",null,null,null,null,null,null,null,null,{"$f":"V52+AE52+AN52+AW52+BF52+BV39","v":0},null,null,null,null,null,null,"人",null,null,null,null,null,null,null,null,"人",null,null,null,null,null,null,null,null,"人",null,null,null,null,null,null,null,null,"人",null,null,null,null,null,null,null,null,"人",null,null,null,null,null,null,null,null,"人",null,null,null,null,null,null,null,null,null,null,null,null,null,null,null,null,null,null,null,null,null,null,null,null,null,null,null,null,null,null,null,null,null,null,null,null,null,null,null,null,null,null,null,null,null,null,null,null,null,null,null,null,null,null,null,{"$f":"M61&\"\"","v":"0"},{"$f":"V61&\"\"","v":""},{"$f":"AE61&\"\"","v":""},{"$f":"AN61&\"\"","v":""},{"$f":"AW61&\"\"","v":""},{"$f":"BF61&\"\"","v":""}]
[null,null,null,null,null,null,null,null,null,null,null,"（",{"$f":"V53+AE53+AN53+AW53+BF53+BW39","v":0},null,null,null,null,null,null,"）","（",null,null,null,null,null,null,null,"）","（",null,null,null,null,null,null,null,"）","（",null,null,null,null,null,null,null,"）","（",null,null,null,null,null,null,null,"）","（",null,null,null,null,null,null,null,"）",null,null,null,null,null,null,null,null,null,null,null,null,null,null,null,null,null,null,null,null,null,null,null,null,null,null,null,null,null,null,null,null,null,null,null,null,null,null,null,null,null,null,null,null,null,null,null,null,null,null,null,null,null,null,null,{"$f":"M64&\"\"","v":"0"},{"$f":"V64&\"\"","v":""},{"$f":"AE64&\"\"","v":""},{"$f":"AN64&\"\"","v":""},{"$f":"AW64&\"\"","v":""},{"$f":"BF64&\"\"","v":""}]
[null,null,null,"(ﾁ)重度身体障害者以外の身体障害\n   者である短時間労働者の数",null,null,null,null,null,null,null,null,{"$f":"V54+AE54+AN54+AW54+BF54+BX39","v":0},null,null,null,null,null,null,"人",null,null,null,null,null,null,null,null,"人",null,null,null,null,null,null,null,null,"人",null,null,null,null,null,null,null,null,"人",null,null,null,null,null,null,null,null,"人",null,null,null,null,null,null,null,null,"人",null,null,null,null,null,null,null,null,null,null,null,null,null,null,null,null,null,null,null,null,null,null,null,null,null,null,null,null,null,null,null,null,null,null,null,null,null,null,null,null,null,null,null,null,null,null,null,null,null,null,null,null,null,null,null,{"$f":"M54&\"\"","v":"0"},{"$f":"V54&\"\"","v":""},{"$f":"AE54&\"\"","v":""},{"$f":"AN54&\"\"","v":""},{"$f":"AW54&\"\"","v":""},{"$f":"BF54&\"\"","v":""}]
[null,null,null,null,null,null,null,null,null,null,null,"（",{"$f":"V55+AE55+AN55+AW55+BF55+BY39","v":0},null,null,null,null,null,null,"）","（",null,null,null,null,null,null,null,"）","（",null,null,null,null,null,null,null,"）","（",null,null,null,null,null,null,null,"）","（",null,null,null,null,null,null,null,"）","（",null,null,null,null,null,null,null,"）",null,null,null,null,null,null,null,null,null,null,null,null,null,null,null,null,null,null,null,null,null,null,null,null,null,null,null,null,null,null,null,null,null,null,null,null,null,null,null,null,null,null,null,null,null,null,null,null,null,null,null,null,null,null,null,"0","","","","",""]
[null,null,null,"(ﾘ)重度身体障害者である\n   特定短時間労働者の数",null,null,null,null,null,null,null,null,{"$f":"V56+AE56+AN56+AW56+BF56+BZ39","v":0},null,null,null,null,null,null,"人",null,null,null,null,null,null,null,null,"人",null,null,null,null,null,null,null,null,"人",null,null,null,null,null,null,null,null,"人",null,null,null,null,null,null,null,null,"人",null,null,null,null,null,null,null,null,"人",null,null,null,null,null,null,null,null,null,null,null,null,null,null,null,null,null,null,null,null,null,null,null,null,null,null,null,null,null,null,null,null,null,null,null,null,null,null,null,null,null,null,null,null,null,null,null,null,null,null,null,null,null,null,null,"0","","","","",""]
[null,null,null,null,null,null,null,null,null,null,null,"（",{"$f":"V57+AE57+AN57+AW57+BF57+CA39","v":0},null,null,null,null,null,null,"）","（",null,null,null,null,null,null,null,"）","（",null,null,null,null,null,null,null,"）","（",null,null,null,null,null,null,null,"）","（",null,null,null,null,null,null,null,"）","（",null,null,null,null,null,null,null,"）",null,null,null,null,null,null,null,null,null,null,null,null,null,null,null,null,null,null,null,null,null,null,null,null,null,null,null,null,null,null,null,null,null,null,null,null,null,null,null,null,null,null,null,null,null,null,null,null,null,null,null,null,null,null,null,"0","","","","",""]
[null,null,null,"(ﾇ)身体障害者の数",null,null,null,null,null,null,null,null,{"$f":"(M48*2)+M50+M52+((M54+M56)*0.5)","v":0},null,null,null,null,null,null,"人",null,{"$f":"(V48*2)+V50+V52+((V54+V56)*0.5)","v":0},null,null,null,null,null,null,"人",null,{"$f":"(AE48*2)+AE50+AE52+((AE54+AE56)*0.5)","v":0},null,null,null,null,null,null,"人",null,{"$f":"(AN48*2)+AN50+AN52+((AN54+AN56)*0.5)","v":0},null,null,null,null,null,null,"人",null,{"$f":"(AW48*2)+AW50+AW52+((AW54+AW56)*0.5)","v":0},null,null,null,null,null,null,"人",null,{"$f":"(BF48*2)+BF50+BF52+((BF54+BF56)*0.5)","v":0},null,null,null,null,null,null,"人",null,null,null,null,null,null,null,null,null,null,null,null,null,null,null,null,null,null,null,null,null,null,null,null,null,null,null,null,null,null,null,null,null,null,null,null,null,null,null,null,null,null,null,null,null,null,null,null,null,null,null,null,null,null,null,"0","0","0","0","0","0"]
[null,null,null,"  ［(ﾎ×2)+ﾍ+ﾄ+((ﾁ+ﾘ)×0.5)］",null,null,null,null,null,null,null,"（",{"$f":"(M49*2)+M51+M53+((M55+M57)*0.5)","v":0},null,null,null,null,null,null,"）","（",{"$f":"(V49*2)+V51+V53+((V55+V57)*0.5)","v":0},null,null,null,null,null,null,"）","（",{"$f":"(AE49*2)+AE51+AE53+((AE55+AE57)*0.5)","v":0},null,null,null,null,null,null,"）","（",{"$f":"(AN49*2)+AN51+AN53+((AN55+AN57)*0.5)","v":0},null,null,null,null,null,null,"）","（",{"$f":"(AW49*2)+AW51+AW53+((AW55+AW57)*0.5)","v":0},null,null,null,null,null,null,"）","（",{"$f":"(BF49*2)+BF51+BF53+((BF55+BF57)*0.5)","v":0},null,null,null,null,null,null,"）",null,null,null,null,null,null,null,null,null,null,null,null,null,null,null,null,null,null,null,null,null,null,null,null,null,null,null,null,null,null,null,null,null,null,null,null,null,null,null,null,null,null,null,null,null,null,null,null,null,null,null,null,null,null,null,"0","0","0","0","0","0"]
[null,null,null,"(ﾙ)重度知的障害者の数",null,null,null,null,null,null,null,null,{"$f":"V60+AE60+AN60+AW60+BF60+CB39","v":0},null,null,null,null,null,null,"人",null,null,null,null,null,null,null,null,"人",null,null,null,null,null,null,null,null,"人",null,null,null,null,null,null,null,null,"人",null,null,null,null,null,null,null,null,"人",null,null,null,null,null,null,null,null,"人",null,null,null,null,null,null,null,null,null,null,null,null,null,null,null,null,null,null,null,null,null,null,null,null,null,null,null,null,null,null,null,null,null,null,null,null,null,null,null,null,null,null,null,null,null,null,null,null,null,null,null,null,null,null,null,"0","","","","",""]
[null,null,null,null,null,null,null,null,null,null,null,"（",{"$f":"V61+AE61+AN61+AW61+BF61+CC39","v":0},null,null,null,null,null,null,"）","（",null,null,null,null,null,null,null,"）","（",null,null,null,null,null,null,null,"）","（",null,null,null,null,null,null,null,"）","（",null,null,null,null,null,null,null,"）","（",null,null,null,null,null,null,null,"）",null,null,null,null,null,null,null,null,null,null,null,null,null,null,null,null,null,null,null,null,null,null,null,null,null,null,null,null,null,null,null,null,null,null,null,null,null,null,null,null,null,null,null,null,null,null,null,null,null,null,null,null,null,null,null,"0","","","","",""]
[null,null,null,"(ｦ)重度知的障害者以外の\n   知的障害者の数",null,null,null,null,null,null,null,null,{"$f":"V62+AE62+AN62+AW62+BF62+CD39","v":0},null,null,null,null,null,null,"人",null,null,null,null,null,null,null,null,"人",null,null,null,null,null,null,null,null,"人",null,null,null,null,null,null,null,null,"人",null,null,null,null,null,null,null,null,"人",null,null,null,null,null,null,null,null,"人",null,null,null,null,null,null,null,null,null,null,null,null,null,null,null,null,null,null,null,null,null,null,null,null,null,null,null,null,null,null,null,null,null,null,null,null,null,null,null,null,null,null,null,null,null,null,null,null,null,null,null,null,null,null,null,"0","","","","",""]
[null,null,null,null,null,null,null,null,null,null,null,"（",{"$f":"V63+AE63+AN63+AW63+BF63+CE39","v":0},null,null,null,null,null,null,"）","（",null,null,null,null,null,null,null,"）","（",null,null,null,null,null,null,null,"）","（",null,null,null,null,null,null,null,"）","（",null,null,null,null,null,null,null,"）","（",null,null,null,null,null,null,null,"）",null,null,null,null,null,null,null,null,null,null,null,null,null,null,null,null,null,null,null,null,null,null,null,null,null,null,null,null,null,null,null,null,null,null,null,null,null,null,null,null,null,null,null,null,null,null,null,null,null,null,null,null,null,null,null,"0","","","","",""]
[null,null,null,"(ﾜ)重度知的障害者である\n   短時間労働者の数",null,null,null,null,null,null,null,null,{"$f":"V64+AE64+AN64+AW64+BF64+CF39","v":0},null,null,null,null,null,null,"人",null,null,null,null,null,null,null,null,"人",null,null,null,null,null,null,null,null,"人",null,null,null,null,null,null,null,null,"人",null,null,null,null,null,null,null,null,"人",null,null,null,null,null,null,null,null,"人",null,null,null,null,null,null,null,null,null,null,null,null,null,null,null,null,null,null,null,null,null,null,null,null,null,null,null,null,null,null,null,null,null,null,null,null,null,null,null,null,null,null,null,null,null,null,null,null,null,null,null,null,null,null,null,"0","","","","",""]
[null,null,null,null,null,null,null,null,null,null,null,"（",{"$f":"V65+AE65+AN65+AW65+BF65+CG39","v":0},null,null,null,null,null,null,"）","（",null,null,null,null,null,null,null,"）","（",null,null,null,null,null,null,null,"）","（",null,null,null,null,null,null,null,"）","（",null,null,null,null,null,null,null,"）","（",null,null,null,null,null,null,null,"）",null,null,null,null,null,null,null,null,null,null,null,null,null,null,null,null,null,null,null,null,null,null,null,null,null,null,null,null,null,null,null,null,null,null,null,null,null,null,null,null,null,null,null,null,null,null,null,null,null,null,null,null,null,null,null,"0","","","","",""]
[null,null,null,"(ｶ)重度知的障害者以外の知的障害\n   者である短時間労働者の数",null,null,null,null,null,null,null,null,{"$f":"V66+AE66+AN66+AW66+BF66+CH39","v":0},null,null,null,null,null,null,"人",null,null,null,null,null,null,null,null,"人",null,null,null,null,null,null,null,null,"人",null,null,null,null,null,null,null,null,"人",null,null,null,null,null,null,null,null,"人",null,null,null,null,null,null,null,null,"人",null,null,null,null,null,null,null,null,null,null,null,null,null,null,null,null,null,null,null,null,null,null,null,null,null,null,null,null,null,null,null,null,null,null,null,null,null,null,null,null,null,null,null,null,null,null,null,null,null,null,null,null,null,null,null,{"$f":"M66&\"\"","v":"0"},{"$f":"V66&\"\"","v":""},{"$f":"AE66&\"\"","v":""},{"$f":"AN66&\"\"","v":""},{"$f":"AW66&\"\"","v":""},{"$f":"BF66&\"\"","v":""}]
[null,null,null,null,null,null,null,null,null,null,null,"（",{"$f":"V67+AE67+AN67+AW67+BF67+CI39","v":0},null,null,null,null,null,null,"）","（",null,null,null,null,null,null,null,"）","（",null,null,null,null,null,null,null,"）","（",null,null,null,null,null,null,null,"）","（",null,null,null,null,null,null,null,"）","（",null,null,null,null,null,null,null,"）",null,null,null,null,null,null,null,null,null,null,null,null,null,null,null,null,null,null,null,null,null,null,null,null,null,null,null,null,null,null,null,null,null,null,null,null,null,null,null,null,null,null,null,null,null,null,null,null,null,null,null,null,null,null,null,"0","","","","",""]
[null,null,null,"(ﾖ)重度知的障害者である\n   特定短時間労働者の数",null,null,null,null,null,null,null,null,{"$f":"V68+AE68+AN68+AW68+BF68+CJ39","v":0},null,null,null,null,null,null,"人",null,null,null,null,null,null,null,null,"人",null,null,null,null,null,null,null,null,"人",null,null,null,null,null,null,null,null,"人",null,null,null,null,null,null,null,null,"人",null,null,null,null,null,null,null,null,"人",null,null,null,null,null,null,null,null,null,null,null,null,null,null,null,null,null,null,null,null,null,null,null,null,null,null,null,null,null,null,null,null,null,null,null,null,null,null,null,null,null,null,null,null,null,null,null,null,null,null,null,null,null,null,null,"0","","","","",""]
[null,null,null,null,null,null,null,null,null,null,null,"（",{"$f":"V69+AE69+AN69+AW69+BF69+CK39","v":0},null,null,null,null,null,null,"）","（",null,null,null,null,null,null,null,"）","（",null,null,null,null,null,null,null,"）","（",null,null,null,null,null,null,null,"）","（",null,null,null,null,null,null,null,"）","（",null,null,null,null,null,null,null,"）",null,null,null,null,null,null,null,null,null,null,null,null,null,null,null,null,null,null,null,null,null,null,null,null,null,null,null,null,null,null,null,null,null,null,null,null,null,null,null,null,null,null,null,null,null,null,null,null,null,null,null,null,null,null,null,"0","","","","",""]
[null,null,null,"(ﾀ)知的障害者の数",null,null,null,null,null,null,null,null,{"$f":"(M60*2)+M62+M64+((M66+M68)*0.5)","v":0},null,null,null,null,null,null,"人",null,{"$f":"(V60*2)+V62+V64+((V66+V68)*0.5)","v":0},null,null,null,null,null,null,"人",null,{"$f":"(AE60*2)+AE62+AE64+((AE66+AE68)*0.5)","v":0},null,null,null,null,null,null,"人",null,{"$f":"(AN60*2)+AN62+AN64+((AN66+AN68)*0.5)","v":0},null,null,null,null,null,null,"人",null,{"$f":"(AW60*2)+AW62+AW64+((AW66+AW68)*0.5)","v":0},null,null,null,null,null,null,"人",null,{"$f":"(BF60*2)+BF62+BF64+((BF66+BF68)*0.5)","v":0},null,null,null,null,null,null,"人",null,null,null,null,null,null,null,null,null,null,null,null,null,null,null,null,null,null,null,null,null,null,null,null,null,null,null,null,null,null,null,null,null,null,null,null,null,null,null,null,null,null,null,null,null,null,null,null,null,null,null,null,null,null,null,{"$f":"M70&\"\"","v":"0"},{"$f":"V70&\"\"","v":"0"},{"$f":"AE70&\"\"","v":"0"},{"$f":"AN70&\"\"","v":"0"},{"$f":"AW70&\"\"","v":"0"},{"$f":"BF70&\"\"","v":"0"}]
[null,null,null,"  ［(ﾙ×2)+ｦ+ﾜ+((ｶ+ﾖ)×0.5)］",null,null,null,null,null,null,null,"（",{"$f":"(M61*2)+M63+M65+((M67+M69)*0.5)","v":0},null,null,null,null,null,null,"）","（",{"$f":"(V61*2)+V63+V65+((V67+V69)*0.5)","v":0},null,null,null,null,null,null,"）","（",{"$f":"(AE61*2)+AE63+AE65+((AE67+AE69)*0.5)","v":0},null,null,null,null,null,null,"）","（",{"$f":"(AN61*2)+AN63+AN65+((AN67+AN69)*0.5)","v":0},null,null,null,null,null,null,"）","（",{"$f":"(AW61*2)+AW63+AW65+((AW67+AW69)*0.5)","v":0},null,null,null,null,null,null,"）","（",{"$f":"(BF61*2)+BF63+BF65+((BF67+BF69)*0.5)","v":0},null,null,null,null,null,null,"）",null,null,null,null,null,null,null,null,null,null,null,null,null,null,null,null,null,null,null,null,null,null,null,null,null,null,null,null,null,null,null,null,null,null,null,null,null,null,null,null,null,null,null,null,null,null,null,null,null,null,null,null,null,null,null,"0","0","0","0","0","0"]
[null,null,null,"(ﾚ)精神障害者の数",null,null,null,null,null,null,null,null,{"$f":"V72+AE72+AN72+AW72+BF72+CL39","v":0},null,null,null,null,null,null,"人",null,null,null,null,null,null,null,null,"人",null,null,null,null,null,null,null,null,"人",null,null,null,null,null,null,null,null,"人",null,null,null,null,null,null,null,null,"人",null,null,null,null,null,null,null,null,"人",null,null,null,null,null,null,null,null,null,null,null,null,null,null,null,null,null,null,null,null,null,null,null,null,null,null,null,null,null,null,null,null,null,null,null,null,null,null,null,null,null,null,null,null,null,null,null,null,null,null,null,null,null,null,null,"0","","","","",""]
[null,null,null,null,null,null,null,null,null,null,null,"（",{"$f":"V73+AE73+AN73+AW73+BF73+CM39","v":0},null,null,null,null,null,null,"）","（",null,null,null,null,null,null,null,"）","（",null,null,null,null,null,null,null,"）","（",null,null,null,null,null,null,null,"）","（",null,null,null,null,null,null,null,"）","（",null,null,null,null,null,null,null,"）",null,null,null,null,null,null,null,null,null,null,null,null,null,null,null,null,null,null,null,null,null,null,null,null,null,null,null,null,null,null,null,null,null,null,null,null,null,null,null,null,null,null,null,null,null,null,null,null,null,null,null,null,null,null,null,"0","","","","",""]
[null,null,null,"(ｿ)精神障害者である\n   短時間労働者の数",null,null,null,null,null,null,null,null,{"$f":"V74+AE74+AN74+AW74+BF74+CN39","v":0},null,null,null,null,null,null,"人",null,null,null,null,null,null,null,null,"人",null,null,null,null,null,null,null,null,"人",null,null,null,null,null,null,null,null,"人",null,null,null,null,null,null,null,null,"人",null,null,null,null,null,null,null,null,"人",null,null,null,null,null,null,null,null,null,null,null,null,null,null,null,null,null,null,null,null,null,null,null,null,null,null,null,null,null,null,null,null,null,null,null,null,null,null,null,null,null,null,null,null,null,null,null,null,null,null,null,null,null,null,null,{"$f":"M74&\"\"","v":"0"},{"$f":"V74&\"\"","v":""},{"$f":"AE74&\"\"","v":""},{"$f":"AN74&\"\"","v":""},{"$f":"AW74&\"\"","v":""},{"$f":"BF74&\"\"","v":""}]
[null,null,null,null,null,null,null,null,null,null,null,"（",{"$f":"V75+AE75+AN75+AW75+BF75+CO39","v":0},null,null,null,null,null,null,"）","（",null,null,null,null,null,null,null,"）","（",null,null,null,null,null,null,null,"）","（",null,null,null,null,null,null,null,"）","（",null,null,null,null,null,null,null,"）","（",null,null,null,null,null,null,null,"）",null,null,null,null,null,null,null,null,null,null,null,null,null,null,null,null,null,null,null,null,null,null,null,null,null,null,null,null,null,null,null,null,null,null,null,null,null,null,null,null,null,null,null,null,null,null,null,null,null,null,null,null,null,null,null,"0","","","","",""]
[null,null,null,"(ﾂ)精神障害者である\n   特定短時間労働者の数",null,null,null,null,null,null,null,null,{"$f":"V76+AE76+AN76+AW76+BF76+CP39","v":0},null,null,null,null,null,null,"人",null,null,null,null,null,null,null,null,"人",null,null,null,null,null,null,null,null,"人",null,null,null,null,null,null,null,null,"人",null,null,null,null,null,null,null,null,"人",null,null,null,null,null,null,null,null,"人",null,null,null,null,null,null,null,null,null,null,null,null,null,null,null,null,null,null,null,null,null,null,null,null,null,null,null,null,null,null,null,null,null,null,null,null,null,null,null,null,null,null,null,null,null,null,null,null,null,null,null,null,null,null,null,{"$f":"M76&\"\"","v":"0"},"","","","",""]
[null,null,null,null,null,null,null,null,null,null,null,"（",{"$f":"V77+AE77+AN77+AW77+BF77+CQ39","v":0},null,null,null,null,null,null,"）","（",null,null,null,null,null,null,null,"）","（",null,null,null,null,null,null,null,"）","（",null,null,null,null,null,null,null,"）","（",null,null,null,null,null,null,null,"）","（",null,null,null,null,null,null,null,"）",null,null,null,null,null,null,null,null,null,null,null,null,null,null,null,null,null,null,null,null,null,null,null,null,null,null,null,null,null,null,null,null,null,null,null,null,null,null,null,null,null,null,null,null,null,null,null,null,null,null,null,null,null,null,null,"0","","","","",""]
[null,null,null,"(ﾈ)精神障害者の数\n　［ﾚ+ｿ+(ﾂ×0.5)］",null,null,null,null,null,null,null,null,{"$f":"M72+M74+M76*0.5","v":0},null,null,null,null,null,null,"人",null,{"$f":"V72+V74+V76*0.5","v":0},null,null,null,null,null,null,"人",null,{"$f":"AE72+AE74+AE76*0.5","v":0},null,null,null,null,null,null,"人",null,{"$f":"AN72+AN74+AN76*0.5","v":0},null,null,null,null,null,null,"人",null,{"$f":"AW72+AW74+AW76*0.5","v":0},null,null,null,null,null,null,"人",null,{"$f":"BF72+BF74+BF76*0.5","v":0},null,null,null,null,null,null,"人",null,null,null,null,null,null,null,null,null,null,null,null,null,null,null,null,null,null,null,null,null,null,null,null,null,null,null,null,null,null,null,null,null,null,null,null,null,null,null,null,null,null,null,null,null,null,null,null,null,null,null,null,null,null,null,{"$f":"M78&\"\"","v":"0"},{"$f":"V78&\"\"","v":"0"},{"$f":"AE78&\"\"","v":"0"},{"$f":"AN78&\"\"","v":"0"},{"$f":"AW78&\"\"","v":"0"},{"$f":"BF78&\"\"","v":"0"}]
[null,null,null,null,null,null,null,null,null,null,null,"（",{"$f":"M73+M75+M77*0.5","v":0},null,null,null,null,null,null,"）","（",{"$f":"V73+V75+V77*0.5","v":0},null,null,null,null,null,null,"）","（",{"$f":"AE73+AE75+AE77*0.5","v":0},null,null,null,null,null,null,"）","（",{"$f":"AN73+AN75+AN77*0.5","v":0},null,null,null,null,null,null,"）","（",{"$f":"AW73+AW75+AW77*0.5","v":0},null,null,null,null,null,null,"）","（",{"$f":"BF73+BF75+BF77*0.5","v":0},null,null,null,null,null,null,"）",null,null,null,null,null,null,null,null,null,null,null,null,null,null,null,null,null,null,null,null,null,null,null,null,null,null,null,null,null,null,null,null,null,null,null,null,null,null,null,null,null,null,null,null,null,null,null,null,null,null,null,null,null,null,null,"0","0","0","0","0","0"]
[null,null,"(12)　　　     計",null,null,null,null,null,null,null,null,null,{"$f":"M58+M70+M78","v":0},null,null,null,null,null,null,"人",null,{"$f":"V58+V70+V78","v":0},null,null,null,null,null,null,"人",null,{"$f":"AE58+AE70+AE78","v":0},null,null,null,null,null,null,"人",null,{"$f":"AN58+AN70+AN78","v":0},null,null,null,null,null,null,"人",null,{"$f":"AW58+AW70+AW78","v":0},null,null,null,null,null,null,"人",null,{"$f":"BF58+BF70+BF78","v":0},null,null,null,null,null,null,"人",null,null,null,null,null,null,null,null,null,null,null,null,null,null,null,null,null,null,null,null,null,null,null,null,null,null,null,null,null,null,null,null,null,null,null,null,null,null,null,null,null,null,null,null,null,null,null,null,null,null,null,null,null,null,null,"0","0","0","0","0","0"]
[null,null,"  　［(11)のﾇ+(11)のﾀ+(11)のﾈ］",null,null,null,null,null,null,null,null,"（",{"$f":"M59+M71+M79","v":0},null,null,null,null,null,null,"）","（",{"$f":"V59+V71+V79","v":0},null,null,null,null,null,null,"）","（",{"$f":"AE59+AE71+AE79","v":0},null,null,null,null,null,null,"）","（",{"$f":"AN59+AN71+AN79","v":0},null,null,null,null,null,null,"）","（",{"$f":"AW59+AW71+AW79","v":0},null,null,null,null,null,null,"）","（",{"$f":"BF59+BF71+BF79","v":0},null,null,null,null,null,null,"）",null,null,null,null,null,null,null,null,null,null,null,null,null,null,null,null,null,null,null,null,null,null,null,null,null,null,null,null,null,null,null,null,null,null,null,null,null,null,null,null,null,null,null,null,null,null,null,null,null,null,null,null,null,null,null,"0","0","0","0","0","0"]
[null,null,"(13)実雇用率  ",null,null,null,null,null,null,null,null,{"$f":"IF( OR(M45=0,M45=\"\"),0,ROUND(M80/M45*100,2))","v":0},null,null,null,null,null,null,null,"％","(14)身体障害者、知的障害者又は精神障害者の不足数",null,null,null,null,null,null,null,null,null,null,null,null,null,null,null,null,null,null,null,null,null,null,null,null,null,null,null,null,null,null,null,null,null,null,"人",null,null,null,null,null,null,null,null,null,null,null,null,null,null,null,null,null,null,null,null,null,null,null,null,null,null,null,null,null,null,null,null,null,null,null,null,null,null,null,null,null,null,null,null,null,null,null,null,null,null,null,null,null,null,null,null,null,null,null,null,null,null,null,null,"","","","","",""]
[null,null," ((12)/(10)のﾆ×100)  ",null,null,null,null,null,null,null,null,null,null,null,null,null,null,null,null,null,"［((10)のﾆ×法定雇用率)-(12)］"]
[null,"Ｄ　障害者の雇用の促進等に関する法律別表に掲げる種類別の身体障害者数"]
[null,"視覚障害者（第１号に該当する者）",null,null,null,null,null,null,null,null,null,null,{"$f":"V85+AE85+AN85+AW85+BF85+CR39","v":0},null,null,null,null,null,null,"人",null,null,null,null,null,null,null,null,"人",null,null,null,null,null,null,null,null,"人",null,null,null,null,null,null,null,null,"人",null,null,null,null,null,null,null,null,"人",null,null,null,null,null,null,null,null,"人"]
[null,"聴覚又は平衡機能障害者\n（第２号に該当する者）",null,null,null,null,null,null,null,null,null,null,{"$f":"V86+AE86+AN86+AW86+BF86+CS39","v":0},null,null,null,null,null,null,"人",null,null,null,null,null,null,null,null,"人",null,null,null,null,null,null,null,null,"人",null,null,null,null,null,null,null,null,"人",null,null,null,null,null,null,null,null,"人",null,null,null,null,null,null,null,null,"人"]
[null,"音声・言語・そしゃく機能障害者\n（第３号に該当する者）",null,null,null,null,null,null,null,null,null,null,{"$f":"V87+AE87+AN87+AW87+BF87+CT39","v":0},null,null,null,null,null,null,"人",null,null,null,null,null,null,null,null,"人",null,null,null,null,null,null,null,null,"人",null,null,null,null,null,null,null,null,"人",null,null,null,null,null,null,null,null,"人",null,null,null,null,null,null,null,null,"人"]
[null,"肢体不自由者（第４号に該当する者）",null,null,null,null,null,null,null,null,null,null,{"$f":"V88+AE88+AN88+AW88+BF88+CU39","v":0},null,null,null,null,null,null,"人",null,null,null,null,null,null,null,null,"人",null,null,null,null,null,null,null,null,"人",null,null,null,null,null,null,null,null,"人",null,null,null,null,null,null,null,null,"人",null,null,null,null,null,null,null,null,"人"]
[null,"内部障害者（第５号に該当する者）",null,null,null,null,null,null,null,null,null,null,{"$f":"V89+AE89+AN89+AW89+BF89+CV39","v":0},null,null,null,null,null,null,"人",null,null,null,null,null,null,null,null,"人",null,null,null,null,null,null,null,null,"人",null,null,null,null,null,null,null,null,"人",null,null,null,null,null,null,null,null,"人",null,null,null,null,null,null,null,null,"人"]
[null," Ｅ 障害者\n 雇用推進者\n",null,null,null,"役職名",null,null,null,null,null,null,null,null,null,"氏名",null,null,null,null,null,null,null,null,null,null,null,null,null,null,"Ｆ 記入\n担当者",null,null,null,"所　属　部課名 ",null,null,null,null,null,null,null,null,null,null,null,null,null,null,"氏名"]
[]
[null,"　　　　（記載上の留意事項は、記載要領にあります。）"]
[]
[]
[null,null,null,null,null,null,null,null,null,null,null,null,null,null,null," 障害者雇用状況報告書（事業所別）"]
[]
[]
[null,"　Ｂ　雇用の状況","区     分",null,null,null,null,null,null,null,null,"Ｃ　事業所別の内訳"]
[null,null,"(4)適用事業所番号",null,null,null,null,null,null,null,null,null,null,"―",null,null,null,null,"―",null,null,null,null,null,"―",null,null,null,null,"―",null,null,null,null,null,"―",null,null,null,"―",null,null,null,null,null,null,"―",null,null,null,null,"―",null,null,null,null,null,"―",null,null,null,null,"―",null,null,null,null,null,null,null,null,null,null,null,null,null,null,null,null,null,null,null,null,null,null,null,null,null,null,null,null,null,null,null,null,null,null,null,null,null,null,null,null,null,null,null,null,null,null,null,null,null,null,null,null,null,null,{"$f":"L99&\"\"","v":""},{"$f":"U99&\"\"","v":""},{"$f":"AD99&\"\"","v":"―"},{"$f":"AM99&\"\"","v":""},{"$f":"AV99&\"\"","v":""},{"$f":"BE99&\"\"","v":""}]
[null,null,"(5)事業所の名称",null,null,null,null,null,null,null,null,null,null,null,null,null,null,null,null,null,null,null,null,null,null,null,null,null,null,null,null,null,null,null,null,null,null,null,null,null,null,null,null,null,null,null,null,null,null,null,null,null,null,null,null,null,null,null,null,null,null,null,null,null,null,null,null,null,null,null,null,null,null,null,null,null,null,null,null,null,null,null,null,null,null,null,null,null,null,null,null,null,null,null,null,null,null,null,null,null,null,null,null,null,null,null,null,null,null,null,null,null,null,null,null,null,null,{"$f":"O99&\"\"","v":""},{"$f":"X99&\"\"","v":""},{"$f":"AG99&\"\"","v":""},{"$f":"AP99&\"\"","v":""},{"$f":"AY99&\"\"","v":""},{"$f":"BH99&\"\"","v":""}]
[null,null,null,null,null,null,null,null,null,null,null,null,null,null,null,null,null,null,null,null,null,null,null,null,null,null,null,null,null,null,null,null,null,null,null,null,null,null,null,null,null,null,null,null,null,null,null,null,null,null,null,null,null,null,null,null,null,null,null,null,null,null,null,null,null,null,null,null,null,null,null,null,null,null,null,null,null,null,null,null,null,null,null,null,null,null,null,null,null,null,null,null,null,null,null,null,null,null,null,null,null,null,null,null,null,null,null,null,null,null,null,null,null,null,null,null,null,{"$f":"T99&\"\"","v":""},{"$f":"AC99&\"\"","v":""},{"$f":"AL99&\"\"","v":""},{"$f":"AU99&\"\"","v":"―"},{"$f":"BD99&\"\"","v":""},{"$f":"BM99&\"\"","v":""}]
[null,null,null,null,null,null,null,null,null,null,null,null,null,null,null,null,null,null,null,null,null,null,null,null,null,null,null,null,null,null,null,null,null,null,null,null,null,null,null,null,null,null,null,null,null,null,null,null,null,null,null,null,null,null,null,null,null,null,null,null,null,null,null,null,null,null,null,null,null,null,null,null,null,null,null,null,null,null,null,null,null,null,null,null,null,null,null,null,null,null,null,null,null,null,null,null,null,null,null,null,null,null,null,null,null,null,null,null,null,null,null,null,null,null,null,null,null,{"$f":"L100&\"\"","v":""},{"$f":"U100&\"\"","v":""},{"$f":"AD100&\"\"","v":""},{"$f":"AM100&\"\"","v":""},{"$f":"AV100&\"\"","v":""},{"$f":"BE100&\"\"","v":""}]
[]
[null,null,"(6)事業所の区分\n　１　特例子会社に含まれる事業所\n　２　指定就労継続支援Ａ型事業所\n　３　上記１及び２以外"]
[]
[]
[]
[null,null,"(7)事業所の所在地",null,null,null,null,null,null,null,null,null,null,null,null,null,null,null,null,null,null,null,null,null,null,null,null,null,null,null,null,null,null,null,null,null,null,null,null,null,null,null,null,null,null,null,null,null,null,null,null,null,null,null,null,null,null,null,null,null,null,null,null,null,null,null,null,null,null,null,null,null,null,null,null,null,null,null,null,null,null,null,null,null,null,null,null,null,null,null,null,null,null,null,null,null,null,null,null,null,null,null,null,null,null,null,null,null,null,null,null,null,null,null,null,null,null,{"$f":"L108&\"\"","v":""},{"$f":"U108&\"\"","v":""},{"$f":"AD108&\"\"","v":""},{"$f":"AM108&\"\"","v":""},{"$f":"AV108&\"\"","v":""},{"$f":"BE108&\"\"","v":""}]
[]
[]
[]
[null,null,"(8)事業の内容",null,null,null,null,null,null,null,null,null,null,null,null,null,null,null,null,null,null,null,null,null,null,null,null,null,null,null,null,null,null,null,null,null,null,null,null,null,null,null,null,null,null,null,null,null,null,null,null,null,null,null,null,null,null,null,null,null,null,null,null,null,null,null,null,null,null,null,null,null,null,null,null,null,null,null,null,null,null,null,null,null,null,null,null,null,null,null,null,null,null,null,null,null,null,null,null,null,null,null,null,null,null,null,null,null,null,null,null,null,null,null,null,null,null,{"$f":"L112&\"\"","v":""},{"$f":"U112&\"\"","v":""},{"$f":"AD112&\"\"","v":""},{"$f":"AM112&\"\"","v":""},{"$f":"AV112&\"\"","v":""},{"$f":"BE112&\"\"","v":""}]
[]
[]
[]
[null,null,"(9)除外率",null,null,null,null,null,null,null,null,null,null,null,null,null,null,null,null,null,"％",null,null,null,null,null,null,null,null,null,"％",null,null,null,null,null,null,null,null,null,null,null,"％",null,null,null,null,null,null,null,null,null,null,"％",null,null,null,null,null,null,null,null,null,null,"％",null,{"$f":"M119+W119+AH119+AS119+BE119","v":0},{"$f":"M120+W120+AH120+AS120+BE120","v":0},{"$f":"M122+W122+AH122+AS122+BE122","v":0},{"$f":"M125+W125+AH125+AS125+BE125","v":0},{"$f":"M126+W126+AH126+AS126+BE126","v":0},{"$f":"M127+W127+AH127+AS127+BE127","v":0},{"$f":"M128+W128+AH128+AS128+BE128","v":0},{"$f":"M129+W129+AH129+AS129+BE129","v":0},{"$f":"M130+W130+AH130+AS130+BE130","v":0},{"$f":"M131+W131+AH131+AS131+BE131","v":0},{"$f":"M132+W132+AH132+AS132+BE132","v":0},{"$f":"M133+W133+AH133+AS133+BE133","v":0},{"$f":"M134+W134+AH134+AS134+BE134","v":0},{"$f":"M137+W137+AH137+AS137+BE137","v":0},{"$f":"M138+W138+AH138+AS138+BE138","v":0},{"$f":"M139+W139+AH139+AS139+BE139","v":0},{"$f":"M140+W140+AH140+AS140+BE140","v":0},{"$f":"M141+W141+AH141+AS141+BE141","v":0},{"$f":"M142+W142+AH142+AS142+BE142","v":0},{"$f":"M143+W143+AH143+AS143+BE143","v":0},{"$f":"M144+W144+AH144+AS144+BE144","v":0},{"$f":"M145+W145+AH145+AS145+BE145","v":0},{"$f":"M146+W146+AH146+AS146+BE146","v":0},{"$f":"M149+W149+AH149+AS149+BE149","v":0},{"$f":"M150+W150+AH150+AS150+BE150","v":0},{"$f":"M151+W151+AH151+AS151+BE151","v":0},{"$f":"M152+W152+AH152+AS152+BE152","v":0},{"$f":"M153+W153+AH153+AS153+BE153","v":0},{"$f":"M154+W154+AH154+AS154+BE154","v":0},{"$f":"M160+W160+AH160+AS160+BE160","v":0},{"$f":"M161+W161+AH161+AS161+BE161","v":0},{"$f":"M162+W162+AH162+AS162+BE162","v":0},{"$f":"M163+W163+AH163+AS163+BE163","v":0},{"$f":"M164+W164+AH164+AS164+BE164","v":0},null,null,null,null,null,null,null,null,null,null,null,null,null,null,null,null,null,{"$f":"L116&\"\"","v":""},{"$f":"U116&\"\"","v":"％"},{"$f":"AD116&\"\"","v":""},{"$f":"AM116&\"\"","v":""},{"$f":"AV116&\"\"","v":""},{"$f":"BE116&\"\"","v":""}]
[null,null,"(10)常用雇用労働者の数"]
[]
[null,null,null,"(ｲ)常用雇用労働者の数",null,null,null,null,null,null,null,null,null,null,null,null,null,null,null,null,"人",null,null,null,null,null,null,null,null,null,"人",null,null,null,null,null,null,null,null,null,null,null,"人",null,null,null,null,null,null,null,null,null,null,"人",null,null,null,null,null,null,null,null,null,null,"人",null,null,null,null,null,null,null,null,null,null,null,null,null,null,null,null,null,null,null,null,null,null,null,null,null,null,null,null,null,null,null,null,null,null,null,null,null,null,null,null,null,null,null,null,null,null,null,null,null,null,null,null,{"$f":"M119&\"\"","v":""},{"$f":"V119&\"\"","v":""},{"$f":"AE119&\"\"","v":"人"},{"$f":"AN119&\"\"","v":""},{"$f":"AW119&\"\"","v":""},{"$f":"BF119&\"\"","v":""}]
[null,null,null,"(ﾛ)短時間労働者の数",null,null,null,null,null,null,null,null,null,null,null,null,null,null,null,null,"人",null,null,null,null,null,null,null,null,null,"人",null,null,null,null,null,null,null,null,null,null,null,"人",null,null,null,null,null,null,null,null,null,null,"人",null,null,null,null,null,null,null,null,null,null,"人",null,null,null,null,null,null,null,null,null,null,null,null,null,null,null,null,null,null,null,null,null,null,null,null,null,null,null,null,null,null,null,null,null,null,null,null,null,null,null,null,null,null,null,null,null,null,null,null,null,null,null,null,{"$f":"M120&\"\"","v":""},{"$f":"V120&\"\"","v":""},{"$f":"AE120&\"\"","v":"人"},{"$f":"AN120&\"\"","v":""},{"$f":"AW120&\"\"","v":""},{"$f":"BF120&\"\"","v":""}]
[null,null,null,"(ﾊ)常用雇用労働者の数［ｲ+(ﾛ×0.5)］",null,null,null,null,null,null,null,null,{"$f":"M119+M120*0.5","v":0},null,null,null,null,null,null,null,"人",null,{"$f":"W119+W120*0.5","v":0},null,null,null,null,null,null,null,"人",null,null,{"$f":"AH119+AH120*0.5","v":0},null,null,null,null,null,null,null,null,"人",null,{"$f":"AS119+AS120*0.5","v":0},null,null,null,null,null,null,null,null,"人",null,null,{"$f":"BE119+BE120*0.5","v":0},null,null,null,null,null,null,null,"人",null,null,null,null,null,null,null,null,null,null,null,null,null,null,null,null,null,null,null,null,null,null,null,null,null,null,null,null,null,null,null,null,null,null,null,null,null,null,null,null,null,null,null,null,null,null,null,null,null,null,null,null,null,{"$f":"M121&\"\"","v":"0"},{"$f":"V121&\"\"","v":""},{"$f":"AE121&\"\"","v":"人"},{"$f":"AN121&\"\"","v":""},{"$f":"AW121&\"\"","v":""},{"$f":"BF121&\"\"","v":""}]
[null,null,null,"(ﾆ)法定雇用障害者の算定の基礎と\n   なる労働者の数",null,null,null,null,null,null,null,null,null,null,null,null,null,null,null,null,"人",null,null,null,null,null,null,null,null,null,"人",null,null,null,null,null,null,null,null,null,null,null,"人",null,null,null,null,null,null,null,null,null,null,"人",null,null,null,null,null,null,null,null,null,null,"人",null,null,null,null,null,null,null,null,null,null,null,null,null,null,null,null,null,null,null,null,null,null,null,null,null,null,null,null,null,null,null,null,null,null,null,null,null,null,null,null,null,null,null,null,null,null,null,null,null,null,null,null,{"$f":"M122&\"\"","v":""},{"$f":"V122&\"\"","v":""},{"$f":"AE122&\"\"","v":"人"},{"$f":"AN122&\"\"","v":""},{"$f":"AW122&\"\"","v":""},{"$f":"BF122&\"\"","v":""}]
[null,null,"(11)常用雇用身体障害者、知的障害者及び精神障害者の数"]
[]
[null,null,null,"(ﾎ)重度身体障害者の数",null,null,null,null,null,null,null,null,null,null,null,null,null,null,null,null,"人",null,null,null,null,null,null,null,null,null,"人",null,null,null,null,null,null,null,null,null,null,null,"人",null,null,null,null,null,null,null,null,null,null,"人",null,null,null,null,null,null,null,null,null,null,"人",null,null,null,null,null,null,null,null,null,null,null,null,null,null,null,null,null,null,null,null,null,null,null,null,null,null,null,null,null,null,null,null,null,null,null,null,null,null,null,null,null,null,null,null,null,null,null,null,null,null,null,null,{"$f":"M125&\"\"","v":""},{"$f":"V125&\"\"","v":""},{"$f":"AE125&\"\"","v":"人"},{"$f":"AN125&\"\"","v":""},{"$f":"AW125&\"\"","v":""},{"$f":"BF125&\"\"","v":""}]
[null,null,null,null,null,null,null,null,null,null,null,"（",null,null,null,null,null,null,null,null,"）","（",null,null,null,null,null,null,null,null,"）",null,"（",null,null,null,null,null,null,null,null,null,"）","（",null,null,null,null,null,null,null,null,null,"）",null,"（",null,null,null,null,null,null,null,null,"）",null,null,null,null,null,null,null,null,null,null,null,null,null,null,null,null,null,null,null,null,null,null,null,null,null,null,null,null,null,null,null,null,null,null,null,null,null,null,null,null,null,null,null,null,null,null,null,null,null,null,null,null,{"$f":"M126&\"\"","v":""},{"$f":"V126&\"\"","v":"（"},{"$f":"#REF!&\"\"","v":{"$error":"#REF!"}},{"$f":"AN126&\"\"","v":""},{"$f":"AW126&\"\"","v":""},{"$f":"BF126&\"\"","v":""}]
[null,null,null,"(ﾍ)重度身体障害者以外の\n   身体障害者の数",null,null,null,null,null,null,null,null,null,null,null,null,null,null,null,null,"人",null,null,null,null,null,null,null,null,null,"人",null,null,null,null,null,null,null,null,null,null,null,"人",null,null,null,null,null,null,null,null,null,null,"人",null,null,null,null,null,null,null,null,null,null,"人",null,null,null,null,null,null,null,null,null,null,null,null,null,null,null,null,null,null,null,null,null,null,null,null,null,null,null,null,null,null,null,null,null,null,null,null,null,null,null,null,null,null,null,null,null,null,null,null,null,null,null,null,"","",{"$f":"AE127&\"\"","v":"人"},"","",""]
[null,null,null,null,null,null,null,null,null,null,null,"（",null,null,null,null,null,null,null,null,"）","（",null,null,null,null,null,null,null,null,"）",null,"（",null,null,null,null,null,null,null,null,null,"）","（",null,null,null,null,null,null,null,null,null,"）",null,"（",null,null,null,null,null,null,null,null,"）",null,null,null,null,null,null,null,null,null,null,null,null,null,null,null,null,null,null,null,null,null,null,null,null,null,null,null,null,null,null,null,null,null,null,null,null,null,null,null,null,null,null,null,null,null,null,null,null,null,null,null,null,"","（",{"$f":"#REF!&\"\"","v":{"$error":"#REF!"}},"","",""]
[null,null,null,"(ﾄ)重度身体障害者である\n　 短時間労働者の数",null,null,null,null,null,null,null,null,null,null,null,null,null,null,null,null,"人",null,null,null,null,null,null,null,null,null,"人",null,null,null,null,null,null,null,null,null,null,null,"人",null,null,null,null,null,null,null,null,null,null,"人",null,null,null,null,null,null,null,null,null,null,"人",null,null,null,null,null,null,null,null,null,null,null,null,null,null,null,null,null,null,null,null,null,null,null,null,null,null,null,null,null,null,null,null,null,null,null,null,null,null,null,null,null,null,null,null,null,null,null,null,null,null,null,null,{"$f":"M138&\"\"","v":""},{"$f":"V138&\"\"","v":"（"},{"$f":"#REF!&\"\"","v":{"$error":"#REF!"}},{"$f":"AN138&\"\"","v":""},{"$f":"AW138&\"\"","v":""},{"$f":"BF138&\"\"","v":""}]
[null,null,null,null,null,null,null,null,null,null,null,"（",null,null,null,null,null,null,null,null,"）","（",null,null,null,null,null,null,null,null,"）",null,"（",null,null,null,null,null,null,null,null,null,"）","（",null,null,null,null,null,null,null,null,null,"）",null,"（",null,null,null,null,null,null,null,null,"）",null,null,null,null,null,null,null,null,null,null,null,null,null,null,null,null,null,null,null,null,null,null,null,null,null,null,null,null,null,null,null,null,null,null,null,null,null,null,null,null,null,null,null,null,null,null,null,null,null,null,null,null,{"$f":"M141&\"\"","v":""},{"$f":"V141&\"\"","v":""},{"$f":"AE141&\"\"","v":"人"},{"$f":"AN141&\"\"","v":""},{"$f":"AW141&\"\"","v":""},{"$f":"BF141&\"\"","v":""}]
[null,null,null,"(ﾁ)重度身体障害者以外の身体障害\n   者である短時間労働者の数",null,null,null,null,null,null,null,null,null,null,null,null,null,null,null,null,"人",null,null,null,null,null,null,null,null,null,"人",null,null,null,null,null,null,null,null,null,null,null,"人",null,null,null,null,null,null,null,null,null,null,"人",null,null,null,null,null,null,null,null,null,null,"人",null,null,null,null,null,null,null,null,null,null,null,null,null,null,null,null,null,null,null,null,null,null,null,null,null,null,null,null,null,null,null,null,null,null,null,null,null,null,null,null,null,null,null,null,null,null,null,null,null,null,null,null,"","","人","","",""]
[null,null,null,null,null,null,null,null,null,null,null,"（",null,null,null,null,null,null,null,null,"）","（",null,null,null,null,null,null,null,null,"）",null,"（",null,null,null,null,null,null,null,null,null,"）","（",null,null,null,null,null,null,null,null,null,"）",null,"（",null,null,null,null,null,null,null,null,"）",null,null,null,null,null,null,null,null,null,null,null,null,null,null,null,null,null,null,null,null,null,null,null,null,null,null,null,null,null,null,null,null,null,null,null,null,null,null,null,null,null,null,null,null,null,null,null,null,null,null,null,null,"","（",{"$f":"#REF!&\"\"","v":{"$error":"#REF!"}},"","",""]
[null,null,null,"(ﾘ)重度身体障害者である\n   特定短時間労働者の数",null,null,null,null,null,null,null,null,null,null,null,null,null,null,null,null,"人",null,null,null,null,null,null,null,null,null,"人",null,null,null,null,null,null,null,null,null,null,null,"人",null,null,null,null,null,null,null,null,null,null,"人",null,null,null,null,null,null,null,null,null,null,"人",null,null,null,null,null,null,null,null,null,null,null,null,null,null,null,null,null,null,null,null,null,null,null,null,null,null,null,null,null,null,null,null,null,null,null,null,null,null,null,null,null,null,null,null,null,null,null,null,null,null,null,null,"","","人","","",""]
[null,null,null,null,null,null,null,null,null,null,null,"（",null,null,null,null,null,null,null,null,"）","（",null,null,null,null,null,null,null,null,"）",null,"（",null,null,null,null,null,null,null,null,null,"）","（",null,null,null,null,null,null,null,null,null,"）",null,"（",null,null,null,null,null,null,null,null,"）",null,null,null,null,null,null,null,null,null,null,null,null,null,null,null,null,null,null,null,null,null,null,null,null,null,null,null,null,null,null,null,null,null,null,null,null,null,null,null,null,null,null,null,null,null,null,null,null,null,null,null,null,"","（",{"$f":"#REF!&\"\"","v":{"$error":"#REF!"}},"","",""]
[null,null,null,"(ﾇ)身体障害者の数",null,null,null,null,null,null,null,null,{"$f":"(M125*2)+M127+M129+((M131+M133)*0.5)","v":0},null,null,null,null,null,null,null,"人",null,{"$f":"(W125*2)+W127+W129+((W131+W133)*0.5)","v":0},null,null,null,null,null,null,null,"人",null,null,{"$f":"(AH125*2)+AH127+AH129+((AH131+AH133)*0.5)","v":0},null,null,null,null,null,null,null,null,"人",null,{"$f":"(AS125*2)+AS127+AS129+((AS131+AS133)*0.5)","v":0},null,null,null,null,null,null,null,null,"人",null,null,{"$f":"(BE125*2)+BE127+BE129+((BE131+BE133)*0.5)","v":0},null,null,null,null,null,null,null,"人",null,null,null,null,null,null,null,null,null,null,null,null,null,null,null,null,null,null,null,null,null,null,null,null,null,null,null,null,null,null,null,null,null,null,null,null,null,null,null,null,null,null,null,null,null,null,null,null,null,null,null,null,"0","","人","","",""]
[null,null,null,"  ［(ﾎ×2)+ﾍ+ﾄ+((ﾁ+ﾘ)×0.5)］",null,null,null,null,null,null,null,"（",{"$f":"(M126*2)+M128+M130+((M132+M134)*0.5)","v":0},null,null,null,null,null,null,null,"）","（",{"$f":"(W126*2)+W128+W130+((W132+W134)*0.5)","v":0},null,null,null,null,null,null,null,"）",null,"（",{"$f":"(AH126*2)+AH128+AH130+((AH132+AH134)*0.5)","v":0},null,null,null,null,null,null,null,null,"）","（",{"$f":"(AS126*2)+AS128+AS130+((AS132+AS134)*0.5)","v":0},null,null,null,null,null,null,null,null,"）",null,"（",{"$f":"(BE126*2)+BE128+BE130+((BE132+BE134)*0.5)","v":0},null,null,null,null,null,null,null,"）",null,null,null,null,null,null,null,null,null,null,null,null,null,null,null,null,null,null,null,null,null,null,null,null,null,null,null,null,null,null,null,null,null,null,null,null,null,null,null,null,null,null,null,null,null,null,null,null,null,null,null,null,"0","（","）","","",""]
[null,null,null,"(ﾙ)重度知的障害者の数",null,null,null,null,null,null,null,null,null,null,null,null,null,null,null,null,"人",null,null,null,null,null,null,null,null,null,"人",null,null,null,null,null,null,null,null,null,null,null,"人",null,null,null,null,null,null,null,null,null,null,"人",null,null,null,null,null,null,null,null,null,null,"人",null,null,null,null,null,null,null,null,null,null,null,null,null,null,null,null,null,null,null,null,null,null,null,null,null,null,null,null,null,null,null,null,null,null,null,null,null,null,null,null,null,null,null,null,null,null,null,null,null,null,null,null,"","","人","","",""]
[null,null,null,null,null,null,null,null,null,null,null,"（",null,null,null,null,null,null,null,null,"）","（",null,null,null,null,null,null,null,null,"）",null,"（",null,null,null,null,null,null,null,null,null,"）","（",null,null,null,null,null,null,null,null,null,"）",null,"（",null,null,null,null,null,null,null,null,"）",null,null,null,null,null,null,null,null,null,null,null,null,null,null,null,null,null,null,null,null,null,null,null,null,null,null,null,null,null,null,null,null,null,null,null,null,null,null,null,null,null,null,null,null,null,null,null,null,null,null,null,null,"","（",{"$f":"#REF!&\"\"","v":{"$error":"#REF!"}},"","",""]
[null,null,null,"(ｦ)重度知的障害者以外の\n   知的障害者の数",null,null,null,null,null,null,null,null,null,null,null,null,null,null,null,null,"人",null,null,null,null,null,null,null,null,null,"人",null,null,null,null,null,null,null,null,null,null,null,"人",null,null,null,null,null,null,null,null,null,null,"人",null,null,null,null,null,null,null,null,null,null,"人",null,null,null,null,null,null,null,null,null,null,null,null,null,null,null,null,null,null,null,null,null,null,null,null,null,null,null,null,null,null,null,null,null,null,null,null,null,null,null,null,null,null,null,null,null,null,null,null,null,null,null,null,"","","人","","",""]
[null,null,null,null,null,null,null,null,null,null,null,"（",null,null,null,null,null,null,null,null,"）","（",null,null,null,null,null,null,null,null,"）",null,"（",null,null,null,null,null,null,null,null,null,"）","（",null,null,null,null,null,null,null,null,null,"）",null,"（",null,null,null,null,null,null,null,null,"）",null,null,null,null,null,null,null,null,null,null,null,null,null,null,null,null,null,null,null,null,null,null,null,null,null,null,null,null,null,null,null,null,null,null,null,null,null,null,null,null,null,null,null,null,null,null,null,null,null,null,null,null,"","（",{"$f":"#REF!&\"\"","v":{"$error":"#REF!"}},"","",""]
[null,null,null,"(ﾜ)重度知的障害者である\n   短時間労働者の数",null,null,null,null,null,null,null,null,null,null,null,null,null,null,null,null,"人",null,null,null,null,null,null,null,null,null,"人",null,null,null,null,null,null,null,null,null,null,null,"人",null,null,null,null,null,null,null,null,null,null,"人",null,null,null,null,null,null,null,null,null,null,"人",null,null,null,null,null,null,null,null,null,null,null,null,null,null,null,null,null,null,null,null,null,null,null,null,null,null,null,null,null,null,null,null,null,null,null,null,null,null,null,null,null,null,null,null,null,null,null,null,null,null,null,null,"","","人","","",""]
[null,null,null,null,null,null,null,null,null,null,null,"（",null,null,null,null,null,null,null,null,"）","（",null,null,null,null,null,null,null,null,"）",null,"（",null,null,null,null,null,null,null,null,null,"）","（",null,null,null,null,null,null,null,null,null,"）",null,"（",null,null,null,null,null,null,null,null,"）",null,null,null,null,null,null,null,null,null,null,null,null,null,null,null,null,null,null,null,null,null,null,null,null,null,null,null,null,null,null,null,null,null,null,null,null,null,null,null,null,null,null,null,null,null,null,null,null,null,null,null,null,"","（",{"$f":"#REF!&\"\"","v":{"$error":"#REF!"}},"","",""]
[null,null,null,"(ｶ)重度知的障害者以外の知的障害\n   者である短時間労働者の数",null,null,null,null,null,null,null,null,null,null,null,null,null,null,null,null,"人",null,null,null,null,null,null,null,null,null,"人",null,null,null,null,null,null,null,null,null,null,null,"人",null,null,null,null,null,null,null,null,null,null,"人",null,null,null,null,null,null,null,null,null,null,"人",null,null,null,null,null,null,null,null,null,null,null,null,null,null,null,null,null,null,null,null,null,null,null,null,null,null,null,null,null,null,null,null,null,null,null,null,null,null,null,null,null,null,null,null,null,null,null,null,null,null,null,null,"","","人","","",""]
[null,null,null,null,null,null,null,null,null,null,null,"（",null,null,null,null,null,null,null,null,"）","（",null,null,null,null,null,null,null,null,"）",null,"（",null,null,null,null,null,null,null,null,null,"）","（",null,null,null,null,null,null,null,null,null,"）",null,"（",null,null,null,null,null,null,null,null,"）",null,null,null,null,null,null,null,null,null,null,null,null,null,null,null,null,null,null,null,null,null,null,null,null,null,null,null,null,null,null,null,null,null,null,null,null,null,null,null,null,null,null,null,null,null,null,null,null,null,null,null,null,"","（",{"$f":"#REF!&\"\"","v":{"$error":"#REF!"}},"","",""]
[null,null,null,"(ﾖ)重度知的障害者である\n   特定短時間労働者の数",null,null,null,null,null,null,null,null,null,null,null,null,null,null,null,null,"人",null,null,null,null,null,null,null,null,null,"人",null,null,null,null,null,null,null,null,null,null,null,"人",null,null,null,null,null,null,null,null,null,null,"人",null,null,null,null,null,null,null,null,null,null,"人",null,null,null,null,null,null,null,null,null,null,null,null,null,null,null,null,null,null,null,null,null,null,null,null,null,null,null,null,null,null,null,null,null,null,null,null,null,null,null,null,null,null,null,null,null,null,null,null,null,null,null,null,"","","人","","",""]
[null,null,null,null,null,null,null,null,null,null,null,"（",null,null,null,null,null,null,null,null,"）","（",null,null,null,null,null,null,null,null,"）",null,"（",null,null,null,null,null,null,null,null,null,"）","（",null,null,null,null,null,null,null,null,null,"）",null,"（",null,null,null,null,null,null,null,null,"）",null,null,null,null,null,null,null,null,null,null,null,null,null,null,null,null,null,null,null,null,null,null,null,null,null,null,null,null,null,null,null,null,null,null,null,null,null,null,null,null,null,null,null,null,null,null,null,null,null,null,null,null,"","（",{"$f":"#REF!&\"\"","v":{"$error":"#REF!"}},"","",""]
[null,null,null,"(ﾀ)知的障害者の数",null,null,null,null,null,null,null,null,{"$f":"(M137*2)+M139+M141+((M143+M145)*0.5)","v":0},null,null,null,null,null,null,null,"人",null,{"$f":"(W137*2)+W139+W141+((W143+W145)*0.5)","v":0},null,null,null,null,null,null,null,"人",null,null,{"$f":"(AH137*2)+AH139+AH141+((AH143+AH145)*0.5)","v":0},null,null,null,null,null,null,null,null,"人",null,{"$f":"(AS137*2)+AS139+AS141+((AS143+AS145)*0.5)","v":0},null,null,null,null,null,null,null,null,"人",null,null,{"$f":"(BE137*2)+BE139+BE141+((BE143+BE145)*0.5)","v":0},null,null,null,null,null,null,null,"人",null,null,null,null,null,null,null,null,null,null,null,null,null,null,null,null,null,null,null,null,null,null,null,null,null,null,null,null,null,null,null,null,null,null,null,null,null,null,null,null,null,null,null,null,null,null,null,null,null,null,null,null,"0","","人","","",""]
[null,null,null,"  ［(ﾙ×2)+ｦ+ﾜ+((ｶ+ﾖ)×0.5)］",null,null,null,null,null,null,null,"（",{"$f":"(M138*2)+M140+M142+((M144+M146)*0.5)","v":0},null,null,null,null,null,null,null,"）","（",{"$f":"(W138*2)+W140+W142+((W144+W146)*0.5)","v":0},null,null,null,null,null,null,null,"）",null,"（",{"$f":"(AH138*2)+AH140+AH142+((AH144+AH146)*0.5)","v":0},null,null,null,null,null,null,null,null,"）","（",{"$f":"(AS138*2)+AS140+AS142+((AS144+AS146)*0.5)","v":0},null,null,null,null,null,null,null,null,"）",null,"（",{"$f":"(BE138*2)+BE140+BE142+((BE144+BE146)*0.5)","v":0},null,null,null,null,null,null,null,"）",null,null,null,null,null,null,null,null,null,null,null,null,null,null,null,null,null,null,null,null,null,null,null,null,null,null,null,null,null,null,null,null,null,null,null,null,null,null,null,null,null,null,null,null,null,null,null,null,null,null,null,null,"0","（","）","","",""]
[null,null,null,"(ﾚ)精神障害者の数",null,null,null,null,null,null,null,null,null,null,null,null,null,null,null,null,"人",null,null,null,null,null,null,null,null,null,"人",null,null,null,null,null,null,null,null,null,null,null,"人",null,null,null,null,null,null,null,null,null,null,"人",null,null,null,null,null,null,null,null,null,null,"人",null,null,null,null,null,null,null,null,null,null,null,null,null,null,null,null,null,null,null,null,null,null,null,null,null,null,null,null,null,null,null,null,null,null,null,null,null,null,null,null,null,null,null,null,null,null,null,null,null,null,null,null,"","","人","","",""]
[null,null,null,null,null,null,null,null,null,null,null,"（",null,null,null,null,null,null,null,null,"）","（",null,null,null,null,null,null,null,null,"）",null,"（",null,null,null,null,null,null,null,null,null,"）","（",null,null,null,null,null,null,null,null,null,"）",null,"（",null,null,null,null,null,null,null,null,"）",null,null,null,null,null,null,null,null,null,null,null,null,null,null,null,null,null,null,null,null,null,null,null,null,null,null,null,null,null,null,null,null,null,null,null,null,null,null,null,null,null,null,null,null,null,null,null,null,null,null,null,null,"","（",{"$f":"#REF!&\"\"","v":{"$error":"#REF!"}},"","",""]
[null,null,null,"(ｿ)精神障害者である\n   短時間労働者の数",null,null,null,null,null,null,null,null,null,null,null,null,null,null,null,null,"人",null,null,null,null,null,null,null,null,null,"人",null,null,null,null,null,null,null,null,null,null,null,"人",null,null,null,null,null,null,null,null,null,null,"人",null,null,null,null,null,null,null,null,null,null,"人",null,null,null,null,null,null,null,null,null,null,null,null,null,null,null,null,null,null,null,null,null,null,null,null,null,null,null,null,null,null,null,null,null,null,null,null,null,null,null,null,null,null,null,null,null,null,null,null,null,null,null,null,"","","人","","",""]
[null,null,null,null,null,null,null,null,null,null,null,"（",null,null,null,null,null,null,null,null,"）","（",null,null,null,null,null,null,null,null,"）",null,"（",null,null,null,null,null,null,null,null,null,"）","（",null,null,null,null,null,null,null,null,null,"）",null,"（",null,null,null,null,null,null,null,null,"）",null,null,null,null,null,null,null,null,null,null,null,null,null,null,null,null,null,null,null,null,null,null,null,null,null,null,null,null,null,null,null,null,null,null,null,null,null,null,null,null,null,null,null,null,null,null,null,null,null,null,null,null,"","（",{"$f":"#REF!&\"\"","v":{"$error":"#REF!"}},"","",""]
[null,null,null,"(ﾂ)精神障害者である\n   特定短時間労働者の数",null,null,null,null,null,null,null,null,null,null,null,null,null,null,null,null,"人",null,null,null,null,null,null,null,null,null,"人",null,null,null,null,null,null,null,null,null,null,null,"人",null,null,null,null,null,null,null,null,null,null,"人",null,null,null,null,null,null,null,null,null,null,"人",null,null,null,null,null,null,null,null,null,null,null,null,null,null,null,null,null,null,null,null,null,null,null,null,null,null,null,null,null,null,null,null,null,null,null,null,null,null,null,null,null,null,null,null,null,null,null,null,null,null,null,null,null,null,{"$f":"M153&\"\"","v":""},{"$f":"V153&\"\"","v":""},{"$f":"AE153&\"\"","v":"人"},{"$f":"AN153&\"\"","v":""},{"$f":"AW153&\"\"","v":""},{"$f":"BF153&\"\"","v":""}]
[null,null,null,null,null,null,null,null,null,null,null,"（",null,null,null,null,null,null,null,null,"）","（",null,null,null,null,null,null,null,null,"）",null,"（",null,null,null,null,null,null,null,null,null,"）","（",null,null,null,null,null,null,null,null,null,"）",null,"（",null,null,null,null,null,null,null,null,"）",null,null,null,null,null,null,null,null,null,null,null,null,null,null,null,null,null,null,null,null,null,null,null,null,null,null,null,null,null,null,null,null,null,null,null,null,null,null,null,null,null,null,null,null,null,null,null,null,null,null,null,null,null,null,"","（",{"$f":"#REF!&\"\"","v":{"$error":"#REF!"}},"","",""]
[null,null,null,"(ﾈ)精神障害者の数\n　［ﾚ+ｿ+(ﾂ×0.5)］",null,null,null,null,null,null,null,null,{"$f":"M149+M151+M153*0.5","v":0},null,null,null,null,null,null,null,"人",null,{"$f":"W149+W151+W153*0.5","v":0},null,null,null,null,null,null,null,"人",null,null,{"$f":"AH149+AH151+AH153*0.5","v":0},null,null,null,null,null,null,null,null,"人",null,{"$f":"AS149+AS151+AS153*0.5","v":0},null,null,null,null,null,null,null,null,"人",null,null,{"$f":"BE149+BE151+BE153*0.5","v":0},null,null,null,null,null,null,null,"人",null,null,null,null,null,null,null,null,null,null,null,null,null,null,null,null,null,null,null,null,null,null,null,null,null,null,null,null,null,null,null,null,null,null,null,null,null,null,null,null,null,null,null,null,null,null,null,null,null,null,null,null,"0","","人","","",""]
[null,null,null,null,null,null,null,null,null,null,null,"（",{"$f":"M150+M152+M154*0.5","v":0},null,null,null,null,null,null,null,"）","（",{"$f":"W150+W152+W154*0.5","v":0},null,null,null,null,null,null,null,"）",null,"（",{"$f":"AH150+AH152+AH154*0.5","v":0},null,null,null,null,null,null,null,null,"）","（",{"$f":"AS150+AS152+AS154*0.5","v":0},null,null,null,null,null,null,null,null,"）",null,"（",{"$f":"BE150+BE152+BE154*0.5","v":0},null,null,null,null,null,null,null,"）",null,null,null,null,null,null,null,null,null,null,null,null,null,null,null,null,null,null,null,null,null,null,null,null,null,null,null,null,null,null,null,null,null,null,null,null,null,null,null,null,null,null,null,null,null,null,null,null,null,null,null,null,"0","（","）","","",""]
[null,null,"(12)　　　     計",null,null,null,null,null,null,null,null,null,{"$f":"M135+M147+M155","v":0},null,null,null,null,null,null,null,"人",null,{"$f":"W135+W147+W155","v":0},null,null,null,null,null,null,null,"人",null,null,{"$f":"AH135+AH147+AH155","v":0},null,null,null,null,null,null,null,null,"人",null,{"$f":"AS135+AS147+AS155","v":0},null,null,null,null,null,null,null,null,"人",null,null,{"$f":"BE135+BE147+BE155","v":0},null,null,null,null,null,null,null,"人",null,null,null,null,null,null,null,null,null,null,null,null,null,null,null,null,null,null,null,null,null,null,null,null,null,null,null,null,null,null,null,null,null,null,null,null,null,null,null,null,null,null,null,null,null,null,null,null,null,null,null,null,"0","","人","","",""]
[null,null,"  　［(11)のﾇ+(11)のﾀ+(11)のﾈ］",null,null,null,null,null,null,null,null,"（",{"$f":"M136+M148+M156","v":0},null,null,null,null,null,null,null,"）","（",{"$f":"W136+W148+W156","v":0},null,null,null,null,null,null,null,"）",null,"（",{"$f":"AH136+AH148+AH156","v":0},null,null,null,null,null,null,null,null,"）","（",{"$f":"AS136+AS148+AS156","v":0},null,null,null,null,null,null,null,null,"）",null,"（",{"$f":"BE136+BE148+BE156","v":0},null,null,null,null,null,null,null,"）",null,null,null,null,null,null,null,null,null,null,null,null,null,null,null,null,null,null,null,null,null,null,null,null,null,null,null,null,null,null,null,null,null,null,null,null,null,null,null,null,null,null,null,null,null,null,null,null,null,null,null,null,"0","（","）","","",""]
[null,"Ｄ　障害者の雇用の促進等に関する法律別表に掲げる種類別の身体障害者数"]
[null,"視覚障害者（第１号に該当する者）",null,null,null,null,null,null,null,null,null,null,null,null,null,null,null,null,null,null,"人",null,null,null,null,null,null,null,null,null,"人",null,null,null,null,null,null,null,null,null,null,null,"人",null,null,null,null,null,null,null,null,null,null,"人",null,null,null,null,null,null,null,null,null,null,"人"]
[null,"聴覚又は平衡機能障害者\n（第２号に該当する者）",null,null,null,null,null,null,null,null,null,null,null,null,null,null,null,null,null,null,"人",null,null,null,null,null,null,null,null,null,"人",null,null,null,null,null,null,null,null,null,null,null,"人",null,null,null,null,null,null,null,null,null,null,"人",null,null,null,null,null,null,null,null,null,null,"人"]
[null,"音声・言語・そしゃく機能障害者\n（第３号に該当する者）",null,null,null,null,null,null,null,null,null,null,null,null,null,null,null,null,null,null,"人",null,null,null,null,null,null,null,null,null,"人",null,null,null,null,null,null,null,null,null,null,null,"人",null,null,null,null,null,null,null,null,null,null,"人",null,null,null,null,null,null,null,null,null,null,"人"]
[null,"肢体不自由者（第４号に該当する者）",null,null,null,null,null,null,null,null,null,null,null,null,null,null,null,null,null,null,"人",null,null,null,null,null,null,null,null,null,"人",null,null,null,null,null,null,null,null,null,null,null,"人",null,null,null,null,null,null,null,null,null,null,"人",null,null,null,null,null,null,null,null,null,null,"人"]
[null,"内部障害者（第５号に該当する者）",null,null,null,null,null,null,null,null,null,null,null,null,null,null,null,null,null,null,"人",null,null,null,null,null,null,null,null,null,"人",null,null,null,null,null,null,null,null,null,null,null,"人",null,null,null,null,null,null,null,null,null,null,"人",null,null,null,null,null,null,null,null,null,null,"人"]
[]
[]
[]
[]
[]
[]
[null,""]

{"sheet":"様式第６号　（裏面）","index":1,"n_rows":0,"n_cols":0,"rows_kept":0,"cut":false,"hidden":false,"merged":[]}

{"sheet":"添付","index":2,"n_rows":79,"n_cols":125,"rows_kept":79,"cut":false,"hidden":true,"merged":[[42,56,42,63],[43,12,43,19],[43,22,43,29],[43,30,43,31],[48,3,49,10],[49,12,49,19],[49,22,49,29],[43,3,43,10],[42,3,42,10],[46,44,46,52],[47,44,47,52],[40,3,41,10],[41,12,41,19],[41,22,41,29],[41,33,41,41],[50,3,51,10],[50,12,50,19],[50,22,50,29],[50,30,50,31],[50,33,50,41],[46,3,47,10],[46,12,46,19],[46,22,46,29],[46,30,46,31],[46,33,46,41],[47,12,47,19],[47,22,47,29],[47,33,47,41],[70,1,70,10],[71,1,71,10],[70,12,70,19],[70,22,70,29],[70,30,70,31],[70,33,70,41],[70,44,70,52],[70,53,70,54],[70,56,70,63],[71,12,71,19],[71,22,71,29],[71,30,71,31],[71,33,71,41],[71,44,71,52],[71,53,71,54],[71,56,71,63],[68,1,68,10],[69,1,69,10],[69,12,69,19],[69,22,69,29],[69,30,69,31],[69,33,69,41],[69,44,69,52],[69,53,69,54],[69,56,69,63],[23,55,23,63],[28,53,28,54],[28,56,28,63],[29,12,29,19],[29,22,29,29],[29,30,29,31],[29,33,29,41],[29,44,29,52],[29,53,29,54],[29,56,29,63],[26,12,26,19],[26,22,26,29],[26,30,26,31],[26,33,26,41],[26,44,26,52],[26,53,26,54],[26,56,26,63],[27,12,27,19],[27,22,27,29],[27,30,27,31],[27,33,27,41],[27,44,27,52],[23,43,23,52],[23,2,23,10],[27,3,27,10],[28,3,28,10],[36,3,37,10],[38,3,39,10],[44,3,45,10],[2,15,3,46],[5,2,5,10],[5,11,5,64],[6,2,6,10],[6,11,6,12],[7,2,10,10],[11,2,14,10],[19,2,22,10],[11,11,14,20],[11,21,14,31],[11,32,14,42],[11,43,14,54],[23,11,23,19],[23,21,23,29],[23,30,23,31],[34,3,35,10],[23,32,23,41],[23,53,23,54],[41,44,41,52],[41,56,41,63],[27,53,27,54],[27,56,27,63],[28,12,28,19],[28,22,28,29],[28,30,28,31],[28,44,28,52],[32,30,32,31],[32,33,32,41],[32,44,32,52],[32,53,32,54],[32,56,32,63],[33,12,33,19],[33,22,33,29],[33,33,33,41],[33,44,33,52],[33,56,33,63],[36,12,36,19],[36,22,36,29],[36,30,36,31],[36,33,36,41],[36,44,36,52],[36,56,36,63],[72,11,72,18],[72,20,75,64],[72,2,72,10],[74,2,75,10],[74,11,75,18],[74,19,75,19],[43,44,43,52],[43,53,43,54],[43,56,43,63],[46,53,46,54],[46,56,46,63],[50,44,50,52],[50,53,50,54],[66,1,66,64],[67,1,67,10],[5,1,65,1],[15,2,18,10],[49,44,49,52],[49,56,49,63],[26,3,26,10],[29,3,29,10],[32,3,33,10],[32,12,32,19],[32,22,32,29],[50,56,50,63],[51,12,51,19],[51,22,51,29],[51,33,51,41],[51,44,51,52],[51,56,51,63],[54,44,54,52],[49,30,49,31],[47,53,47,54],[54,56,54,63],[53,30,53,31],[49,53,49,54],[51,53,51,54],[53,53,53,54],[47,56,47,63],[48,12,48,19],[48,22,48,29],[48,30,48,31],[48,33,48,41],[48,44,48,52],[48,53,48,54],[48,56,48,63],[47,30,47,31],[51,30,51,31],[52,3,53,10],[54,3,54,10],[52,12,52,19],[52,22,52,29],[52,30,52,31],[52,33,52,41],[52,44,52,52],[52,53,52,54],[52,56,52,63],[53,12,53,19],[53,22,53,29],[53,33,53,41],[53,44,53,52],[53,56,53,63],[54,12,54,19],[54,22,54,29],[60,30,60,31],[60,33,60,41],[60,44,60,52],[56,56,56,63],[57,12,57,19],[57,22,57,29],[57,33,57,41],[57,44,57,52],[55,3,55,10],[56,30,56,31],[56,33,56,41],[56,44,56,52],[55,12,55,19],[55,22,55,29],[55,30,55,31],[55,44,55,52],[55,53,55,54],[55,56,55,63],[55,33,55,41],[57,56,57,63],[58,12,58,19],[58,22,58,29],[58,30,58,31],[58,33,58,41],[11,55,14,64],[15,11,18,20],[65,2,65,10],[64,2,64,10],[65,12,65,19],[65,22,65,29],[65,30,65,31],[65,33,65,41],[65,44,65,52],[65,53,65,54],[65,56,65,63],[64,12,64,19],[64,22,64,29],[64,30,64,31],[64,33,64,41],[64,44,64,52],[64,53,64,54],[64,56,64,63],[62,3,63,10],[60,3,61,10],[58,3,59,10],[56,3,57,10],[56,12,56,19],[56,22,56,29],[6,52,6,54],[6,55,6,56],[6,58,6,61],[6,63,6,64],[7,11,10,20],[7,21,10,31],[7,32,10,42],[7,43,10,54],[7,55,10,64],[6,19,6,20],[6,21,6,23],[6,25,6,28],[6,30,6,31],[6,36,6,38],[6,40,6,42],[6,43,6,45],[6,47,6,50],[6,14,6,17],[6,32,6,34],[15,21,18,31],[15,32,18,42],[15,43,18,54],[15,55,18,64],[19,11,22,20],[19,21,22,31],[19,32,22,42],[19,43,22,54],[19,55,22,64],[67,12,67,19],[67,22,67,29],[67,30,67,31],[67,33,67,41],[67,44,67,52],[67,53,67,54],[67,56,67,63],[68,12,68,19],[68,22,68,29],[68,30,68,31],[68,33,68,41],[68,44,68,52],[68,53,68,54],[68,56,68,63],[34,12,34,19],[34,22,34,29],[34,30,34,31],[34,33,34,41],[34,44,34,52],[34,53,34,54],[34,56,34,63],[35,12,35,19],[35,22,35,29],[35,33,35,41],[35,44,35,52],[35,56,35,63],[37,12,37,19],[37,22,37,29],[37,33,37,41],[37,44,37,52],[37,56,37,63],[39,12,39,19],[39,22,39,29],[39,33,39,41],[39,44,39,52],[39,56,39,63],[38,12,38,19],[38,22,38,29],[38,30,38,31],[38,33,38,41],[38,44,38,52],[38,53,38,54],[38,56,38,63],[40,56,40,63],[44,12,44,19],[44,22,44,29],[44,30,44,31],[44,33,44,41],[44,44,44,52],[44,53,44,54],[44,56,44,63],[45,12,45,19],[45,22,45,29],[45,33,45,41],[45,44,45,52],[45,56,45,63],[40,12,40,19],[40,22,40,29],[40,30,40,31],[40,44,40,52],[40,53,40,54],[45,30,45,31],[45,53,45,54],[42,12,42,19],[42,22,42,29],[42,30,42,31],[42,44,42,52],[58,44,58,52],[58,53,58,54],[58,56,58,63],[59,12,59,19],[59,22,59,29],[59,33,59,41],[59,44,59,52],[59,56,59,63],[57,30,57,31],[59,30,59,31],[57,53,57,54],[59,53,59,54],[60,56,60,63],[61,12,61,19],[61,22,61,29],[61,33,61,41],[61,44,61,52],[61,56,61,63],[63,30,63,31],[63,33,63,41],[63,44,63,52],[63,53,63,54],[63,56,63,63],[62,53,62,54],[62,56,62,63],[63,12,63,19],[63,22,63,29],[61,30,61,31],[61,53,61,54],[62,12,62,19],[62,22,62,29],[62,30,62,31],[62,33,62,41],[62,44,62,52],[60,12,60,19],[60,22,60,29],[33,30,33,31],[35,30,35,31],[37,30,37,31],[39,30,39,31],[41,30,41,31],[28,33,28,41],[54,33,54,41],[42,33,42,41],[43,33,43,41],[49,33,49,41],[40,33,40,41],[54,30,54,31],[33,53,33,54],[35,53,35,54],[37,53,37,54],[39,53,39,54],[41,53,41,54],[60,53,60,54],[56,53,56,54],[54,53,54,54],[42,53,42,54],[36,53,36,54]]}
[]
[]
[null,null,null,null,null,null,null,null,null,null,null,null,null,null,null," 障害者雇用状況報告書（事業所別）"]
[]
[]
[null,"　Ｂ　雇用の状況","区     分",null,null,null,null,null,null,null,null,"Ｃ　事業所別の内訳"]
[null,null,"(4)適用事業所番号",null,null,null,null,null,null,null,null,null,null,"―",null,null,null,null,"―",null,null,null,null,null,"―",null,null,null,null,"―",null,null,null,null,null,"―",null,null,null,"―",null,null,null,null,null,null,"―",null,null,null,null,"―",null,null,null,null,null,"―",null,null,null,null,"―",null,null,null,null,null,null,null,null,null,null,null,null,null,null,null,null,null,null,null,null,null,null,null,null,null,null,null,null,null,null,null,null,null,null,null,null,null,null,null,null,null,null,null,null,null,null,null,null,null,null,null,null,null,null,{"$f":"L7&\"\"","v":""},{"$f":"U7&\"\"","v":""},{"$f":"AD7&\"\"","v":"―"},{"$f":"AM7&\"\"","v":""},{"$f":"AV7&\"\"","v":""},{"$f":"BE7&\"\"","v":""}]
[null,null,"(5)事業所の名称",null,null,null,null,null,null,null,null,null,null,null,null,null,null,null,null,null,null,null,null,null,null,null,null,null,null,null,null,null,null,null,null,null,null,null,null,null,null,null,null,null,null,null,null,null,null,null,null,null,null,null,null,null,null,null,null,null,null,null,null,null,null,null,null,null,null,null,null,null,null,null,null,null,null,null,null,null,null,null,null,null,null,null,null,null,null,null,null,null,null,null,null,null,null,null,null,null,null,null,null,null,null,null,null,null,null,null,null,null,null,null,null,null,null,{"$f":"O7&\"\"","v":""},{"$f":"X7&\"\"","v":""},{"$f":"AG7&\"\"","v":""},{"$f":"AP7&\"\"","v":""},{"$f":"AY7&\"\"","v":""},{"$f":"BH7&\"\"","v":""}]
[null,null,null,null,null,null,null,null,null,null,null,null,null,null,null,null,null,null,null,null,null,null,null,null,null,null,null,null,null,null,null,null,null,null,null,null,null,null,null,null,null,null,null,null,null,null,null,null,null,null,null,null,null,null,null,null,null,null,null,null,null,null,null,null,null,null,null,null,null,null,null,null,null,null,null,null,null,null,null,null,null,null,null,null,null,null,null,null,null,null,null,null,null,null,null,null,null,null,null,null,null,null,null,null,null,null,null,null,null,null,null,null,null,null,null,null,null,{"$f":"T7&\"\"","v":""},{"$f":"AC7&\"\"","v":""},{"$f":"AL7&\"\"","v":""},{"$f":"AU7&\"\"","v":"―"},{"$f":"BD7&\"\"","v":""},{"$f":"BM7&\"\"","v":""}]
[null,null,null,null,null,null,null,null,null,null,null,null,null,null,null,null,null,null,null,null,null,null,null,null,null,null,null,null,null,null,null,null,null,null,null,null,null,null,null,null,null,null,null,null,null,null,null,null,null,null,null,null,null,null,null,null,null,null,null,null,null,null,null,null,null,null,null,null,null,null,null,null,null,null,null,null,null,null,null,null,null,null,null,null,null,null,null,null,null,null,null,null,null,null,null,null,null,null,null,null,null,null,null,null,null,null,null,null,null,null,null,null,null,null,null,null,null,{"$f":"L8&\"\"","v":""},{"$f":"U8&\"\"","v":""},{"$f":"AD8&\"\"","v":""},{"$f":"AM8&\"\"","v":""},{"$f":"AV8&\"\"","v":""},{"$f":"BE8&\"\"","v":""}]
[]
[null,null,"(6)事業所の区分\n　１　特例子会社に含まれる事業所\n　２　指定就労継続支援Ａ型事業所\n　３　上記１及び２以外"]
[]
[]
[]
[null,null,"(7)事業所の所在地",null,null,null,null,null,null,null,null,null,null,null,null,null,null,null,null,null,null,null,null,null,null,null,null,null,null,null,null,null,null,null,null,null,null,null,null,null,null,null,null,null,null,null,null,null,null,null,null,null,null,null,null,null,null,null,null,null,null,null,null,null,null,null,null,null,null,null,null,null,null,null,null,null,null,null,null,null,null,null,null,null,null,null,null,null,null,null,null,null,null,null,null,null,null,null,null,null,null,null,null,null,null,null,null,null,null,null,null,null,null,null,null,null,null,{"$f":"L16&\"\"","v":""},{"$f":"U16&\"\"","v":""},{"$f":"AD16&\"\"","v":""},{"$f":"AM16&\"\"","v":""},{"$f":"AV16&\"\"","v":""},{"$f":"BE16&\"\"","v":""}]
[]
[]
[]
[null,null,"(8)事業の内容",null,null,null,null,null,null,null,null,null,null,null,null,null,null,null,null,null,null,null,null,null,null,null,null,null,null,null,null,null,null,null,null,null,null,null,null,null,null,null,null,null,null,null,null,null,null,null,null,null,null,null,null,null,null,null,null,null,null,null,null,null,null,null,null,null,null,null,null,null,null,null,null,null,null,null,null,null,null,null,null,null,null,null,null,null,null,null,null,null,null,null,null,null,null,null,null,null,null,null,null,null,null,null,null,null,null,null,null,null,null,null,null,null,null,{"$f":"L20&\"\"","v":""},{"$f":"U20&\"\"","v":""},{"$f":"AD20&\"\"","v":""},{"$f":"AM20&\"\"","v":""},{"$f":"AV20&\"\"","v":""},{"$f":"BE20&\"\"","v":""}]
[]
[]
[]
[null,null,"(9)除外率",null,null,null,null,null,null,null,null,null,null,null,null,null,null,null,null,null,"％",null,null,null,null,null,null,null,null,null,"％",null,null,null,null,null,null,null,null,null,null,null,"％",null,null,null,null,null,null,null,null,null,null,"％",null,null,null,null,null,null,null,null,null,null,"％",null,{"$f":"M27+W27+AH27+AS27+BE27","v":0},{"$f":"M28+W28+AH28+AS28+BE28","v":0},{"$f":"M30+W30+AH30+AS30+BE30","v":0},{"$f":"M33+W33+AH33+AS33+BE33","v":0},{"$f":"M34+W34+AH34+AS34+BE34","v":0},{"$f":"M35+W35+AH35+AS35+BE35","v":0},{"$f":"M36+W36+AH36+AS36+BE36","v":0},{"$f":"M37+W37+AH37+AS37+BE37","v":0},{"$f":"M38+W38+AH38+AS38+BE38","v":0},{"$f":"M39+W39+AH39+AS39+BE39","v":0},{"$f":"M40+W40+AH40+AS40+BE40","v":0},{"$f":"M41+W41+AH41+AS41+BE41","v":0},{"$f":"M42+W42+AH42+AS42+BE42","v":0},{"$f":"M45+W45+AH45+AS45+BE45","v":0},{"$f":"M46+W46+AH46+AS46+BE46","v":0},{"$f":"M47+W47+AH47+AS47+BE47","v":0},{"$f":"M48+W48+AH48+AS48+BE48","v":0},{"$f":"M49+W49+AH49+AS49+BE49","v":0},{"$f":"M50+W50+AH50+AS50+BE50","v":0},{"$f":"M51+W51+AH51+AS51+BE51","v":0},{"$f":"M52+W52+AH52+AS52+BE52","v":0},{"$f":"M53+W53+AH53+AS53+BE53","v":0},{"$f":"M54+W54+AH54+AS54+BE54","v":0},{"$f":"M57+W57+AH57+AS57+BE57","v":0},{"$f":"M58+W58+AH58+AS58+BE58","v":0},{"$f":"M59+W59+AH59+AS59+BE59","v":0},{"$f":"M60+W60+AH60+AS60+BE60","v":0},{"$f":"M61+W61+AH61+AS61+BE61","v":0},{"$f":"M62+W62+AH62+AS62+BE62","v":0},{"$f":"M68+W68+AH68+AS68+BE68","v":0},{"$f":"M69+W69+AH69+AS69+BE69","v":0},{"$f":"M70+W70+AH70+AS70+BE70","v":0},{"$f":"M71+W71+AH71+AS71+BE71","v":0},{"$f":"M72+W72+AH72+AS72+BE72","v":0},null,null,null,null,null,null,null,null,null,null,null,null,null,null,null,null,null,{"$f":"L24&\"\"","v":""},{"$f":"U24&\"\"","v":"％"},{"$f":"AD24&\"\"","v":""},{"$f":"AM24&\"\"","v":""},{"$f":"AV24&\"\"","v":""},{"$f":"BE24&\"\"","v":""}]
[null,null,"(10)常用雇用労働者の数"]
[]
[null,null,null,"(ｲ)常用雇用労働者の数",null,null,null,null,null,null,null,null,null,null,null,null,null,null,null,null,"人",null,null,null,null,null,null,null,null,null,"人",null,null,null,null,null,null,null,null,null,null,null,"人",null,null,null,null,null,null,null,null,null,null,"人",null,null,null,null,null,null,null,null,null,null,"人",null,null,null,null,null,null,null,null,null,null,null,null,null,null,null,null,null,null,null,null,null,null,null,null,null,null,null,null,null,null,null,null,null,null,null,null,null,null,null,null,null,null,null,null,null,null,null,null,null,null,null,null,{"$f":"M27&\"\"","v":""},{"$f":"V27&\"\"","v":""},{"$f":"AE27&\"\"","v":"人"},{"$f":"AN27&\"\"","v":""},{"$f":"AW27&\"\"","v":""},{"$f":"BF27&\"\"","v":""}]
[null,null,null,"(ﾛ)短時間労働者の数",null,null,null,null,null,null,null,null,null,null,null,null,null,null,null,null,"人",null,null,null,null,null,null,null,null,null,"人",null,null,null,null,null,null,null,null,null,null,null,"人",null,null,null,null,null,null,null,null,null,null,"人",null,null,null,null,null,null,null,null,null,null,"人",null,null,null,null,null,null,null,null,null,null,null,null,null,null,null,null,null,null,null,null,null,null,null,null,null,null,null,null,null,null,null,null,null,null,null,null,null,null,null,null,null,null,null,null,null,null,null,null,null,null,null,null,{"$f":"M28&\"\"","v":""},{"$f":"V28&\"\"","v":""},{"$f":"AE28&\"\"","v":"人"},{"$f":"AN28&\"\"","v":""},{"$f":"AW28&\"\"","v":""},{"$f":"BF28&\"\"","v":""}]
[null,null,null,"(ﾊ)常用雇用労働者の数［ｲ+(ﾛ×0.5)］",null,null,null,null,null,null,null,null,{"$f":"M27+M28*0.5","v":0},null,null,null,null,null,null,null,"人",null,{"$f":"W27+W28*0.5","v":0},null,null,null,null,null,null,null,"人",null,null,{"$f":"AH27+AH28*0.5","v":0},null,null,null,null,null,null,null,null,"人",null,{"$f":"AS27+AS28*0.5","v":0},null,null,null,null,null,null,null,null,"人",null,null,{"$f":"BE27+BE28*0.5","v":0},null,null,null,null,null,null,null,"人",null,null,null,null,null,null,null,null,null,null,null,null,null,null,null,null,null,null,null,null,null,null,null,null,null,null,null,null,null,null,null,null,null,null,null,null,null,null,null,null,null,null,null,null,null,null,null,null,null,null,null,null,null,{"$f":"M29&\"\"","v":"0"},{"$f":"V29&\"\"","v":""},{"$f":"AE29&\"\"","v":"人"},{"$f":"AN29&\"\"","v":""},{"$f":"AW29&\"\"","v":""},{"$f":"BF29&\"\"","v":""}]
[null,null,null,"(ﾆ)法定雇用障害者の算定の基礎と\n   なる労働者の数",null,null,null,null,null,null,null,null,null,null,null,null,null,null,null,null,"人",null,null,null,null,null,null,null,null,null,"人",null,null,null,null,null,null,null,null,null,null,null,"人",null,null,null,null,null,null,null,null,null,null,"人",null,null,null,null,null,null,null,null,null,null,"人",null,null,null,null,null,null,null,null,null,null,null,null,null,null,null,null,null,null,null,null,null,null,null,null,null,null,null,null,null,null,null,null,null,null,null,null,null,null,null,null,null,null,null,null,null,null,null,null,null,null,null,null,{"$f":"M30&\"\"","v":""},{"$f":"V30&\"\"","v":""},{"$f":"AE30&\"\"","v":"人"},{"$f":"AN30&\"\"","v":""},{"$f":"AW30&\"\"","v":""},{"$f":"BF30&\"\"","v":""}]
[null,null,"(11)常用雇用身体障害者、知的障害者及び精神障害者の数"]
[]
[null,null,null,"(ﾎ)重度身体障害者の数",null,null,null,null,null,null,null,null,null,null,null,null,null,null,null,null,"人",null,null,null,null,null,null,null,null,null,"人",null,null,null,null,null,null,null,null,null,null,null,"人",null,null,null,null,null,null,null,null,null,null,"人",null,null,null,null,null,null,null,null,null,null,"人",null,null,null,null,null,null,null,null,null,null,null,null,null,null,null,null,null,null,null,null,null,null,null,null,null,null,null,null,null,null,null,null,null,null,null,null,null,null,null,null,null,null,null,null,null,null,null,null,null,null,null,null,{"$f":"M33&\"\"","v":""},{"$f":"V33&\"\"","v":""},{"$f":"AE33&\"\"","v":"人"},{"$f":"AN33&\"\"","v":""},{"$f":"AW33&\"\"","v":""},{"$f":"BF33&\"\"","v":""}]
[null,null,null,null,null,null,null,null,null,null,null,"（",null,null,null,null,null,null,null,null,"）","（",null,null,null,null,null,null,null,null,"）",null,"（",null,null,null,null,null,null,null,null,null,"）","（",null,null,null,null,null,null,null,null,null,"）",null,"（",null,null,null,null,null,null,null,null,"）",null,null,null,null,null,null,null,null,null,null,null,null,null,null,null,null,null,null,null,null,null,null,null,null,null,null,null,null,null,null,null,null,null,null,null,null,null,null,null,null,null,null,null,null,null,null,null,null,null,null,null,null,{"$f":"M34&\"\"","v":""},{"$f":"V34&\"\"","v":"（"},{"$f":"#REF!&\"\"","v":{"$error":"#REF!"}},{"$f":"AN34&\"\"","v":""},{"$f":"AW34&\"\"","v":""},{"$f":"BF34&\"\"","v":""}]
[null,null,null,"(ﾍ)重度身体障害者以外の\n   身体障害者の数",null,null,null,null,null,null,null,null,null,null,null,null,null,null,null,null,"人",null,null,null,null,null,null,null,null,null,"人",null,null,null,null,null,null,null,null,null,null,null,"人",null,null,null,null,null,null,null,null,null,null,"人",null,null,null,null,null,null,null,null,null,null,"人",null,null,null,null,null,null,null,null,null,null,null,null,null,null,null,null,null,null,null,null,null,null,null,null,null,null,null,null,null,null,null,null,null,null,null,null,null,null,null,null,null,null,null,null,null,null,null,null,null,null,null,null,"","",{"$f":"AE35&\"\"","v":"人"},"","",""]
[null,null,null,null,null,null,null,null,null,null,null,"（",null,null,null,null,null,null,null,null,"）","（",null,null,null,null,null,null,null,null,"）",null,"（",null,null,null,null,null,null,null,null,null,"）","（",null,null,null,null,null,null,null,null,null,"）",null,"（",null,null,null,null,null,null,null,null,"）",null,null,null,null,null,null,null,null,null,null,null,null,null,null,null,null,null,null,null,null,null,null,null,null,null,null,null,null,null,null,null,null,null,null,null,null,null,null,null,null,null,null,null,null,null,null,null,null,null,null,null,null,"","（",{"$f":"#REF!&\"\"","v":{"$error":"#REF!"}},"","",""]
[null,null,null,"(ﾄ)重度身体障害者である\n　 短時間労働者の数",null,null,null,null,null,null,null,null,null,null,null,null,null,null,null,null,"人",null,null,null,null,null,null,null,null,null,"人",null,null,null,null,null,null,null,null,null,null,null,"人",null,null,null,null,null,null,null,null,null,null,"人",null,null,null,null,null,null,null,null,null,null,"人",null,null,null,null,null,null,null,null,null,null,null,null,null,null,null,null,null,null,null,null,null,null,null,null,null,null,null,null,null,null,null,null,null,null,null,null,null,null,null,null,null,null,null,null,null,null,null,null,null,null,null,null,{"$f":"M46&\"\"","v":""},{"$f":"V46&\"\"","v":"（"},{"$f":"#REF!&\"\"","v":{"$error":"#REF!"}},{"$f":"AN46&\"\"","v":""},{"$f":"AW46&\"\"","v":""},{"$f":"BF46&\"\"","v":""}]
[null,null,null,null,null,null,null,null,null,null,null,"（",null,null,null,null,null,null,null,null,"）","（",null,null,null,null,null,null,null,null,"）",null,"（",null,null,null,null,null,null,null,null,null,"）","（",null,null,null,null,null,null,null,null,null,"）",null,"（",null,null,null,null,null,null,null,null,"）",null,null,null,null,null,null,null,null,null,null,null,null,null,null,null,null,null,null,null,null,null,null,null,null,null,null,null,null,null,null,null,null,null,null,null,null,null,null,null,null,null,null,null,null,null,null,null,null,null,null,null,null,{"$f":"M49&\"\"","v":""},{"$f":"V49&\"\"","v":""},{"$f":"AE49&\"\"","v":"人"},{"$f":"AN49&\"\"","v":""},{"$f":"AW49&\"\"","v":""},{"$f":"BF49&\"\"","v":""}]
[null,null,null,"(ﾁ)重度身体障害者以外の身体障害\n   者である短時間労働者の数",null,null,null,null,null,null,null,null,null,null,null,null,null,null,null,null,"人",null,null,null,null,null,null,null,null,null,"人",null,null,null,null,null,null,null,null,null,null,null,"人",null,null,null,null,null,null,null,null,null,null,"人",null,null,null,null,null,null,null,null,null,null,"人",null,null,null,null,null,null,null,null,null,null,null,null,null,null,null,null,null,null,null,null,null,null,null,null,null,null,null,null,null,null,null,null,null,null,null,null,null,null,null,null,null,null,null,null,null,null,null,null,null,null,null,null,"","","人","","",""]
[null,null,null,null,null,null,null,null,null,null,null,"（",null,null,null,null,null,null,null,null,"）","（",null,null,null,null,null,null,null,null,"）",null,"（",null,null,null,null,null,null,null,null,null,"）","（",null,null,null,null,null,null,null,null,null,"）",null,"（",null,null,null,null,null,null,null,null,"）",null,null,null,null,null,null,null,null,null,null,null,null,null,null,null,null,null,null,null,null,null,null,null,null,null,null,null,null,null,null,null,null,null,null,null,null,null,null,null,null,null,null,null,null,null,null,null,null,null,null,null,null,"","（",{"$f":"#REF!&\"\"","v":{"$error":"#REF!"}},"","",""]
[null,null,null,"(ﾘ)重度身体障害者である\n   特定短時間労働者の数",null,null,null,null,null,null,null,null,null,null,null,null,null,null,null,null,"人",null,null,null,null,null,null,null,null,null,"人",null,null,null,null,null,null,null,null,null,null,null,"人",null,null,null,null,null,null,null,null,null,null,"人",null,null,null,null,null,null,null,null,null,null,"人",null,null,null,null,null,null,null,null,null,null,null,null,null,null,null,null,null,null,null,null,null,null,null,null,null,null,null,null,null,null,null,null,null,null,null,null,null,null,null,null,null,null,null,null,null,null,null,null,null,null,null,null,{"$f":"M41&\"\"","v":""},{"$f":"V41&\"\"","v":""},{"$f":"AE41&\"\"","v":"人"},{"$f":"AN41&\"\"","v":""},{"$f":"AW41&\"\"","v":""},{"$f":"BF41&\"\"","v":""}]
[null,null,null,null,null,null,null,null,null,null,null,"（",null,null,null,null,null,null,null,null,"）","（",null,null,null,null,null,null,null,null,"）",null,"（",null,null,null,null,null,null,null,null,null,"）","（",null,null,null,null,null,null,null,null,null,"）",null,"（",null,null,null,null,null,null,null,null,"）",null,null,null,null,null,null,null,null,null,null,null,null,null,null,null,null,null,null,null,null,null,null,null,null,null,null,null,null,null,null,null,null,null,null,null,null,null,null,null,null,null,null,null,null,null,null,null,null,null,null,null,null,"","（",{"$f":"#REF!&\"\"","v":{"$error":"#REF!"}},"","",""]
[null,null,null,"(ﾇ)身体障害者の数",null,null,null,null,null,null,null,null,{"$f":"(M33*2)+M35+M37+((M39+M41)*0.5)","v":0},null,null,null,null,null,null,null,"人",null,{"$f":"(W33*2)+W35+W37+((W39+W41)*0.5)","v":0},null,null,null,null,null,null,null,"人",null,null,{"$f":"(AH33*2)+AH35+AH37+((AH39+AH41)*0.5)","v":0},null,null,null,null,null,null,null,null,"人",null,{"$f":"(AS33*2)+AS35+AS37+((AS39+AS41)*0.5)","v":0},null,null,null,null,null,null,null,null,"人",null,null,{"$f":"(BE33*2)+BE35+BE37+((BE39+BE41)*0.5)","v":0},null,null,null,null,null,null,null,"人",null,null,null,null,null,null,null,null,null,null,null,null,null,null,null,null,null,null,null,null,null,null,null,null,null,null,null,null,null,null,null,null,null,null,null,null,null,null,null,null,null,null,null,null,null,null,null,null,null,null,null,null,"0","","人","","",""]
[null,null,null,"  ［(ﾎ×2)+ﾍ+ﾄ+((ﾁ+ﾘ)×0.5)］",null,null,null,null,null,null,null,"（",{"$f":"(M34*2)+M36+M38+((M40+M42)*0.5)","v":0},null,null,null,null,null,null,null,"）","（",{"$f":"(W34*2)+W36+W38+((W40+W42)*0.5)","v":0},null,null,null,null,null,null,null,"）",null,"（",{"$f":"(AH34*2)+AH36+AH38+((AH40+AH42)*0.5)","v":0},null,null,null,null,null,null,null,null,"）","（",{"$f":"(AS34*2)+AS36+AS38+((AS40+AS42)*0.5)","v":0},null,null,null,null,null,null,null,null,"）",null,"（",{"$f":"(BE34*2)+BE36+BE38+((BE40+BE42)*0.5)","v":0},null,null,null,null,null,null,null,"）",null,null,null,null,null,null,null,null,null,null,null,null,null,null,null,null,null,null,null,null,null,null,null,null,null,null,null,null,null,null,null,null,null,null,null,null,null,null,null,null,null,null,null,null,null,null,null,null,null,null,null,null,"0","（","）","","",""]
[null,null,null,"(ﾙ)重度知的障害者の数",null,null,null,null,null,null,null,null,null,null,null,null,null,null,null,null,"人",null,null,null,null,null,null,null,null,null,"人",null,null,null,null,null,null,null,null,null,null,null,"人",null,null,null,null,null,null,null,null,null,null,"人",null,null,null,null,null,null,null,null,null,null,"人",null,null,null,null,null,null,null,null,null,null,null,null,null,null,null,null,null,null,null,null,null,null,null,null,null,null,null,null,null,null,null,null,null,null,null,null,null,null,null,null,null,null,null,null,null,null,null,null,null,null,null,null,"","","人","","",""]
[null,null,null,null,null,null,null,null,null,null,null,"（",null,null,null,null,null,null,null,null,"）","（",null,null,null,null,null,null,null,null,"）",null,"（",null,null,null,null,null,null,null,null,null,"）","（",null,null,null,null,null,null,null,null,null,"）",null,"（",null,null,null,null,null,null,null,null,"）",null,null,null,null,null,null,null,null,null,null,null,null,null,null,null,null,null,null,null,null,null,null,null,null,null,null,null,null,null,null,null,null,null,null,null,null,null,null,null,null,null,null,null,null,null,null,null,null,null,null,null,null,"","（",{"$f":"#REF!&\"\"","v":{"$error":"#REF!"}},"","",""]
[null,null,null,"(ｦ)重度知的障害者以外の\n   知的障害者の数",null,null,null,null,null,null,null,null,null,null,null,null,null,null,null,null,"人",null,null,null,null,null,null,null,null,null,"人",null,null,null,null,null,null,null,null,null,null,null,"人",null,null,null,null,null,null,null,null,null,null,"人",null,null,null,null,null,null,null,null,null,null,"人",null,null,null,null,null,null,null,null,null,null,null,null,null,null,null,null,null,null,null,null,null,null,null,null,null,null,null,null,null,null,null,null,null,null,null,null,null,null,null,null,null,null,null,null,null,null,null,null,null,null,null,null,"","","人","","",""]
[null,null,null,null,null,null,null,null,null,null,null,"（",null,null,null,null,null,null,null,null,"）","（",null,null,null,null,null,null,null,null,"）",null,"（",null,null,null,null,null,null,null,null,null,"）","（",null,null,null,null,null,null,null,null,null,"）",null,"（",null,null,null,null,null,null,null,null,"）",null,null,null,null,null,null,null,null,null,null,null,null,null,null,null,null,null,null,null,null,null,null,null,null,null,null,null,null,null,null,null,null,null,null,null,null,null,null,null,null,null,null,null,null,null,null,null,null,null,null,null,null,"","（",{"$f":"#REF!&\"\"","v":{"$error":"#REF!"}},"","",""]
[null,null,null,"(ﾜ)重度知的障害者である\n   短時間労働者の数",null,null,null,null,null,null,null,null,null,null,null,null,null,null,null,null,"人",null,null,null,null,null,null,null,null,null,"人",null,null,null,null,null,null,null,null,null,null,null,"人",null,null,null,null,null,null,null,null,null,null,"人",null,null,null,null,null,null,null,null,null,null,"人",null,null,null,null,null,null,null,null,null,null,null,null,null,null,null,null,null,null,null,null,null,null,null,null,null,null,null,null,null,null,null,null,null,null,null,null,null,null,null,null,null,null,null,null,null,null,null,null,null,null,null,null,"","","人","","",""]
[null,null,null,null,null,null,null,null,null,null,null,"（",null,null,null,null,null,null,null,null,"）","（",null,null,null,null,null,null,null,null,"）",null,"（",null,null,null,null,null,null,null,null,null,"）","（",null,null,null,null,null,null,null,null,null,"）",null,"（",null,null,null,null,null,null,null,null,"）",null,null,null,null,null,null,null,null,null,null,null,null,null,null,null,null,null,null,null,null,null,null,null,null,null,null,null,null,null,null,null,null,null,null,null,null,null,null,null,null,null,null,null,null,null,null,null,null,null,null,null,null,"","（",{"$f":"#REF!&\"\"","v":{"$error":"#REF!"}},"","",""]
[null,null,null,"(ｶ)重度知的障害者以外の知的障害\n   者である短時間労働者の数",null,null,null,null,null,null,null,null,null,null,null,null,null,null,null,null,"人",null,null,null,null,null,null,null,null,null,"人",null,null,null,null,null,null,null,null,null,null,null,"人",null,null,null,null,null,null,null,null,null,null,"人",null,null,null,null,null,null,null,null,null,null,"人",null,null,null,null,null,null,null,null,null,null,null,null,null,null,null,null,null,null,null,null,null,null,null,null,null,null,null,null,null,null,null,null,null,null,null,null,null,null,null,null,null,null,null,null,null,null,null,null,null,null,null,null,"","","人","","",""]
[null,null,null,null,null,null,null,null,null,null,null,"（",null,null,null,null,null,null,null,null,"）","（",null,null,null,null,null,null,null,null,"）",null,"（",null,null,null,null,null,null,null,null,null,"）","（",null,null,null,null,null,null,null,null,null,"）",null,"（",null,null,null,null,null,null,null,null,"）",null,null,null,null,null,null,null,null,null,null,null,null,null,null,null,null,null,null,null,null,null,null,null,null,null,null,null,null,null,null,null,null,null,null,null,null,null,null,null,null,null,null,null,null,null,null,null,null,null,null,null,null,"","（",{"$f":"#REF!&\"\"","v":{"$error":"#REF!"}},"","",""]
[null,null,null,"(ﾖ)重度知的障害者である\n   特定短時間労働者の数",null,null,null,null,null,null,null,null,null,null,null,null,null,null,null,null,"人",null,null,null,null,null,null,null,null,null,"人",null,null,null,null,null,null,null,null,null,null,null,"人",null,null,null,null,null,null,null,null,null,null,"人",null,null,null,null,null,null,null,null,null,null,"人",null,null,null,null,null,null,null,null,null,null,null,null,null,null,null,null,null,null,null,null,null,null,null,null,null,null,null,null,null,null,null,null,null,null,null,null,null,null,null,null,null,null,null,null,null,null,null,null,null,null,null,null,{"$f":"M53&\"\"","v":""},{"$f":"V53&\"\"","v":""},{"$f":"AE53&\"\"","v":"人"},{"$f":"AN53&\"\"","v":""},{"$f":"AW53&\"\"","v":""},{"$f":"BF53&\"\"","v":""}]
[null,null,null,null,null,null,null,null,null,null,null,"（",null,null,null,null,null,null,null,null,"）","（",null,null,null,null,null,null,null,null,"）",null,"（",null,null,null,null,null,null,null,null,null,"）","（",null,null,null,null,null,null,null,null,null,"）",null,"（",null,null,null,null,null,null,null,null,"）",null,null,null,null,null,null,null,null,null,null,null,null,null,null,null,null,null,null,null,null,null,null,null,null,null,null,null,null,null,null,null,null,null,null,null,null,null,null,null,null,null,null,null,null,null,null,null,null,null,null,null,null,"","（",{"$f":"#REF!&\"\"","v":{"$error":"#REF!"}},"","",""]
[null,null,null,"(ﾀ)知的障害者の数",null,null,null,null,null,null,null,null,{"$f":"(M45*2)+M47+M49+((M51+M53)*0.5)","v":0},null,null,null,null,null,null,null,"人",null,{"$f":"(W45*2)+W47+W49+((W51+W53)*0.5)","v":0},null,null,null,null,null,null,null,"人",null,null,{"$f":"(AH45*2)+AH47+AH49+((AH51+AH53)*0.5)","v":0},null,null,null,null,null,null,null,null,"人",null,{"$f":"(AS45*2)+AS47+AS49+((AS51+AS53)*0.5)","v":0},null,null,null,null,null,null,null,null,"人",null,null,{"$f":"(BE45*2)+BE47+BE49+((BE51+BE53)*0.5)","v":0},null,null,null,null,null,null,null,"人",null,null,null,null,null,null,null,null,null,null,null,null,null,null,null,null,null,null,null,null,null,null,null,null,null,null,null,null,null,null,null,null,null,null,null,null,null,null,null,null,null,null,null,null,null,null,null,null,null,null,null,null,"0","","人","","",""]
[null,null,null,"  ［(ﾙ×2)+ｦ+ﾜ+((ｶ+ﾖ)×0.5)］",null,null,null,null,null,null,null,"（",{"$f":"(M46*2)+M48+M50+((M52+M54)*0.5)","v":0},null,null,null,null,null,null,null,"）","（",{"$f":"(W46*2)+W48+W50+((W52+W54)*0.5)","v":0},null,null,null,null,null,null,null,"）",null,"（",{"$f":"(AH46*2)+AH48+AH50+((AH52+AH54)*0.5)","v":0},null,null,null,null,null,null,null,null,"）","（",{"$f":"(AS46*2)+AS48+AS50+((AS52+AS54)*0.5)","v":0},null,null,null,null,null,null,null,null,"）",null,"（",{"$f":"(BE46*2)+BE48+BE50+((BE52+BE54)*0.5)","v":0},null,null,null,null,null,null,null,"）",null,null,null,null,null,null,null,null,null,null,null,null,null,null,null,null,null,null,null,null,null,null,null,null,null,null,null,null,null,null,null,null,null,null,null,null,null,null,null,null,null,null,null,null,null,null,null,null,null,null,null,null,"0","（","）","","",""]
[null,null,null,"(ﾚ)精神障害者の数",null,null,null,null,null,null,null,null,null,null,null,null,null,null,null,null,"人",null,null,null,null,null,null,null,null,null,"人",null,null,null,null,null,null,null,null,null,null,null,"人",null,null,null,null,null,null,null,null,null,null,"人",null,null,null,null,null,null,null,null,null,null,"人",null,null,null,null,null,null,null,null,null,null,null,null,null,null,null,null,null,null,null,null,null,null,null,null,null,null,null,null,null,null,null,null,null,null,null,null,null,null,null,null,null,null,null,null,null,null,null,null,null,null,null,null,"","","人","","",""]
[null,null,null,null,null,null,null,null,null,null,null,"（",null,null,null,null,null,null,null,null,"）","（",null,null,null,null,null,null,null,null,"）",null,"（",null,null,null,null,null,null,null,null,null,"）","（",null,null,null,null,null,null,null,null,null,"）",null,"（",null,null,null,null,null,null,null,null,"）",null,null,null,null,null,null,null,null,null,null,null,null,null,null,null,null,null,null,null,null,null,null,null,null,null,null,null,null,null,null,null,null,null,null,null,null,null,null,null,null,null,null,null,null,null,null,null,null,null,null,null,null,"","（",{"$f":"#REF!&\"\"","v":{"$error":"#REF!"}},"","",""]
[null,null,null,"(ｿ)精神障害者である\n   短時間労働者の数",null,null,null,null,null,null,null,null,null,null,null,null,null,null,null,null,"人",null,null,null,null,null,null,null,null,null,"人",null,null,null,null,null,null,null,null,null,null,null,"人",null,null,null,null,null,null,null,null,null,null,"人",null,null,null,null,null,null,null,null,null,null,"人",null,null,null,null,null,null,null,null,null,null,null,null,null,null,null,null,null,null,null,null,null,null,null,null,null,null,null,null,null,null,null,null,null,null,null,null,null,null,null,null,null,null,null,null,null,null,null,null,null,null,null,null,"","","人","","",""]
[null,null,null,null,null,null,null,null,null,null,null,"（",null,null,null,null,null,null,null,null,"）","（",null,null,null,null,null,null,null,null,"）",null,"（",null,null,null,null,null,null,null,null,null,"）","（",null,null,null,null,null,null,null,null,null,"）",null,"（",null,null,null,null,null,null,null,null,"）",null,null,null,null,null,null,null,null,null,null,null,null,null,null,null,null,null,null,null,null,null,null,null,null,null,null,null,null,null,null,null,null,null,null,null,null,null,null,null,null,null,null,null,null,null,null,null,null,null,null,null,null,"","（",{"$f":"#REF!&\"\"","v":{"$error":"#REF!"}},"","",""]
[null,null,null,"(ﾂ)精神障害者である\n   特定短時間労働者の数",null,null,null,null,null,null,null,null,null,null,null,null,null,null,null,null,"人",null,null,null,null,null,null,null,null,null,"人",null,null,null,null,null,null,null,null,null,null,null,"人",null,null,null,null,null,null,null,null,null,null,"人",null,null,null,null,null,null,null,null,null,null,"人",null,null,null,null,null,null,null,null,null,null,null,null,null,null,null,null,null,null,null,null,null,null,null,null,null,null,null,null,null,null,null,null,null,null,null,null,null,null,null,null,null,null,null,null,null,null,null,null,null,null,null,null,null,null,{"$f":"M61&\"\"","v":""},{"$f":"V61&\"\"","v":""},{"$f":"AE61&\"\"","v":"人"},{"$f":"AN61&\"\"","v":""},{"$f":"AW61&\"\"","v":""},{"$f":"BF61&\"\"","v":""}]
[null,null,null,null,null,null,null,null,null,null,null,"（",null,null,null,null,null,null,null,null,"）","（",null,null,null,null,null,null,null,null,"）",null,"（",null,null,null,null,null,null,null,null,null,"）","（",null,null,null,null,null,null,null,null,null,"）",null,"（",null,null,null,null,null,null,null,null,"）",null,null,null,null,null,null,null,null,null,null,null,null,null,null,null,null,null,null,null,null,null,null,null,null,null,null,null,null,null,null,null,null,null,null,null,null,null,null,null,null,null,null,null,null,null,null,null,null,null,null,null,null,null,null,"","（",{"$f":"#REF!&\"\"","v":{"$error":"#REF!"}},"","",""]
[null,null,null,"(ﾈ)精神障害者の数\n　［ﾚ+ｿ+(ﾂ×0.5)］",null,null,null,null,null,null,null,null,{"$f":"M57+M59+M61*0.5","v":0},null,null,null,null,null,null,null,"人",null,{"$f":"W57+W59+W61*0.5","v":0},null,null,null,null,null,null,null,"人",null,null,{"$f":"AH57+AH59+AH61*0.5","v":0},null,null,null,null,null,null,null,null,"人",null,{"$f":"AS57+AS59+AS61*0.5","v":0},null,null,null,null,null,null,null,null,"人",null,null,{"$f":"BE57+BE59+BE61*0.5","v":0},null,null,null,null,null,null,null,"人",null,null,null,null,null,null,null,null,null,null,null,null,null,null,null,null,null,null,null,null,null,null,null,null,null,null,null,null,null,null,null,null,null,null,null,null,null,null,null,null,null,null,null,null,null,null,null,null,null,null,null,null,"0","","人","","",""]
[null,null,null,null,null,null,null,null,null,null,null,"（",{"$f":"M58+M60+M62*0.5","v":0},null,null,null,null,null,null,null,"）","（",{"$f":"W58+W60+W62*0.5","v":0},null,null,null,null,null,null,null,"）",null,"（",{"$f":"AH58+AH60+AH62*0.5","v":0},null,null,null,null,null,null,null,null,"）","（",{"$f":"AS58+AS60+AS62*0.5","v":0},null,null,null,null,null,null,null,null,"）",null,"（",{"$f":"BE58+BE60+BE62*0.5","v":0},null,null,null,null,null,null,null,"）",null,null,null,null,null,null,null,null,null,null,null,null,null,null,null,null,null,null,null,null,null,null,null,null,null,null,null,null,null,null,null,null,null,null,null,null,null,null,null,null,null,null,null,null,null,null,null,null,null,null,null,null,"0","（","）","","",""]
[null,null,"(12)　　　     計",null,null,null,null,null,null,null,null,null,{"$f":"M43+M55+M63","v":0},null,null,null,null,null,null,null,"人",null,{"$f":"W43+W55+W63","v":0},null,null,null,null,null,null,null,"人",null,null,{"$f":"AH43+AH55+AH63","v":0},null,null,null,null,null,null,null,null,"人",null,{"$f":"AS43+AS55+AS63","v":0},null,null,null,null,null,null,null,null,"人",null,null,{"$f":"BE43+BE55+BE63","v":0},null,null,null,null,null,null,null,"人",null,null,null,null,null,null,null,null,null,null,null,null,null,null,null,null,null,null,null,null,null,null,null,null,null,null,null,null,null,null,null,null,null,null,null,null,null,null,null,null,null,null,null,null,null,null,null,null,null,null,null,null,"0","","人","","",""]
[null,null,"  　［(11)のﾇ+(11)のﾀ+(11)のﾈ］",null,null,null,null,null,null,null,null,"（",{"$f":"M44+M56+M64","v":0},null,null,null,null,null,null,null,"）","（",{"$f":"W44+W56+W64","v":0},null,null,null,null,null,null,null,"）",null,"（",{"$f":"AH44+AH56+AH64","v":0},null,null,null,null,null,null,null,null,"）","（",{"$f":"AS44+AS56+AS64","v":0},null,null,null,null,null,null,null,null,"）",null,"（",{"$f":"BE44+BE56+BE64","v":0},null,null,null,null,null,null,null,"）",null,null,null,null,null,null,null,null,null,null,null,null,null,null,null,null,null,null,null,null,null,null,null,null,null,null,null,null,null,null,null,null,null,null,null,null,null,null,null,null,null,null,null,null,null,null,null,null,null,null,null,null,"0","（","）","","",""]
[null,"Ｄ　障害者の雇用の促進等に関する法律別表に掲げる種類別の身体障害者数"]
[null,"視覚障害者（第１号に該当する者）",null,null,null,null,null,null,null,null,null,null,null,null,null,null,null,null,null,null,"人",null,null,null,null,null,null,null,null,null,"人",null,null,null,null,null,null,null,null,null,null,null,"人",null,null,null,null,null,null,null,null,null,null,"人",null,null,null,null,null,null,null,null,null,null,"人"]
[null,"聴覚又は平衡機能障害者\n（第２号に該当する者）",null,null,null,null,null,null,null,null,null,null,null,null,null,null,null,null,null,null,"人",null,null,null,null,null,null,null,null,null,"人",null,null,null,null,null,null,null,null,null,null,null,"人",null,null,null,null,null,null,null,null,null,null,"人",null,null,null,null,null,null,null,null,null,null,"人"]
[null,"音声・言語・そしゃく機能障害者\n（第３号に該当する者）",null,null,null,null,null,null,null,null,null,null,null,null,null,null,null,null,null,null,"人",null,null,null,null,null,null,null,null,null,"人",null,null,null,null,null,null,null,null,null,null,null,"人",null,null,null,null,null,null,null,null,null,null,"人",null,null,null,null,null,null,null,null,null,null,"人"]
[null,"肢体不自由者（第４号に該当する者）",null,null,null,null,null,null,null,null,null,null,null,null,null,null,null,null,null,null,"人",null,null,null,null,null,null,null,null,null,"人",null,null,null,null,null,null,null,null,null,null,null,"人",null,null,null,null,null,null,null,null,null,null,"人",null,null,null,null,null,null,null,null,null,null,"人"]
[null,"内部障害者（第５号に該当する者）",null,null,null,null,null,null,null,null,null,null,null,null,null,null,null,null,null,null,"人",null,null,null,null,null,null,null,null,null,"人",null,null,null,null,null,null,null,null,null,null,null,"人",null,null,null,null,null,null,null,null,null,null,"人",null,null,null,null,null,null,null,null,null,null,"人"]
[]
[]
[]
[]
[]
[]
[null,""]

{"sheet":"産業分類マッピング表","index":3,"n_rows":101,"n_cols":4,"rows_kept":101,"cut":false,"hidden":true,"merged":[]}
[]
[null,"項番","産業分類コード（中分類）","産業中分類名称"]
[null,1,"01","農業"]
[null,2,"02","林業"]
[null,3,"03","漁業（水産養殖業を除く）"]
[null,4,"04","水産養殖業"]
[null,5,"05","鉱業、採石業、砂利採取業"]
[null,6,"06","総合工事業"]
[null,7,"07","職別工事業（設備工事業を除く）"]
[null,8,"08","設備工事業"]
[null,9,"09","食料品製造業"]
[null,10,"10","飲料・たばこ・飼料製造業"]
[null,11,"11","繊維工業"]
[null,12,"12","木材・木製品製造業（家具を除く）"]
[null,13,"13","家具・装備品製造業"]
[null,14,"14","パルプ・紙・紙加工品製造業"]
[null,15,"15","印刷・同関連業"]
[null,16,"16","化学工業"]
[null,17,"17","石油製品・石炭製品製造業"]
[null,18,"18","プラスチック製品製造業（別掲を除く）"]
[null,19,"19","ゴム製品製造業"]
[null,20,"20","なめし革・同製品・毛皮製造業"]
[null,21,"21","窯業・土石製品製造業"]
[null,22,"22","鉄鋼業"]
[null,23,"23","非鉄金属製造業"]
[null,24,"24","金属製品製造業"]
[null,25,"25","はん用機械器具製造業"]
[null,26,"26","生産用機械器具製造業"]
[null,27,"27","業務用機械器具製造業"]
[null,28,"28","電子部品・デバイス・電子回路製造業"]
[null,29,"29","電気機械器具製造業"]
[null,30,"30","情報通信機械器具製造業"]
[null,31,"31","輸送用機械器具製造業"]
[null,32,"32","その他の製造業"]
[null,33,"33","電気業"]
[null,34,"34","ガス業"]
[null,35,"35","熱供給業"]
[null,36,"36","水道業"]
[null,37,"37","通信業"]
[null,38,"38","放送業"]
[null,39,"39","情報サービス業"]
[null,40,"40","インターネット附随サービス業"]
[null,41,"41","映像・音声・文字情報制作業"]
[null,42,"42","鉄道業"]
[null,43,"43","道路旅客運送業"]
[null,44,"44","道路貨物運送業"]
[null,45,"45","水運業"]
[null,46,"46","航空運輸業"]
[null,47,"47","倉庫業"]
[null,48,"48","運輸に附帯するサービス業"]
[null,49,"49","郵便業（信書便事業を含む）"]
[null,50,"50","各種商品卸売業"]
[null,51,"51","繊維・衣服等卸売業"]
[null,52,"52","飲食料品卸売業"]
[null,53,"53","建築材料、鉱物・金属材料等卸売業"]
[null,54,"54","機械器具卸売業"]
[null,55,"55","その他の卸売業"]
[null,56,"56","各種商品小売業"]
[null,57,"57","織物・衣服・身の回り品小売業"]
[null,58,"58","飲食料品小売業"]
[null,59,"59","機械器具小売業"]
[null,60,"60","その他の小売業"]
[null,61,"61","無店舗小売業"]
[null,62,"62","銀行業"]
[null,63,"63","協同組織金融業"]
[null,64,"64","貸金業、非預金信用機関"]
[null,65,"65","金融商品取引業、商品先物取引業"]
[null,66,"66","補助的金融業等"]
[null,67,"67","保険業（保険媒介代理、保険サービス含む）"]
[null,68,"68","不動産取引業"]
[null,69,"69","不動産賃貸業・管理業"]
[null,70,"70","物品賃貸業"]
[null,71,"71","学術・開発研究機関"]
[null,72,"72","専門サービス業（他に分類されないもの）"]
[null,73,"73","広告業"]
[null,74,"74","技術サービス業（他に分類されないもの）"]
[null,75,"75","宿泊業"]
[null,76,"76","飲食店"]
[null,77,"77","持ち帰り・配達飲食サービス業"]
[null,78,"78","洗濯・理容・美容・浴場業"]
[null,79,"79","その他の生活関連サービス業"]
[null,80,"80","娯楽業"]
[null,81,"81","学校教育"]
[null,82,"82","その他の教育、学習支援業"]
[null,83,"83","医療業"]
[null,84,"84","保健衛生"]
[null,85,"85","社会保険・社会福祉・介護事業"]
[null,86,"86","郵便局"]
[null,87,"87","協同組合（他に分類されないもの）"]
[null,88,"88","廃棄物処理業"]
[null,89,"89","自動車整備業"]
[null,90,"90","機械等修理業（別掲を除く）"]
[null,91,"91","職業紹介・労働者派遣業"]
[null,92,"92","その他の事業サービス業"]
[null,93,"93","政治・経済・文化団体"]
[null,94,"94","宗教"]
[null,95,"95","その他のサービス業"]
[null,96,"96","外国公務"]
[null,97,"97","国家公務"]
[null,98,"98","地方公務"]
[null,99,"99","分類不能の産業"]